Publisher Label,Publisher URI,"Supplier ID","Supplier","Invoice No.","Amount £","Purpose","Transaction Number","Payment Date","Organisational Unit","Cost Centre(T)","Internal Category Number"
"Wolverhampton City Council","http://opendatacommunities.org/id/metropolitan-district-council/wolverhampton","700044","Access To Business","494","15,000.00","TPP - Social Care Support Services","130209112","27/04/2018","Enterprise","Access to Business","R5501"
"Wolverhampton City Council","http://opendatacommunities.org/id/metropolitan-district-council/wolverhampton","700044","Access To Business","513","4,901.06","Training Expenses","130212210","11/04/2018","Strategic Organisation Development","Universal Credit","R1650"
"Wolverhampton City Council","http://opendatacommunities.org/id/metropolitan-district-council/wolverhampton","700242","Acorn Adventure","1800398B","7,228.20","Education trips, Holidays, Outings & Activities","130211493","04/04/2018","Schools","Castlecroft Primary School","R4970"
"Wolverhampton City Council","http://opendatacommunities.org/id/metropolitan-district-council/wolverhampton","700264","Acorn Environmental Mgt Group Limited","11287","617.40","Grounds Maintenance - Contract","130211503","04/04/2018","Environmental Maintenance","Arbor Scheme","R2075"
"Wolverhampton City Council","http://opendatacommunities.org/id/metropolitan-district-council/wolverhampton","700341","Acs Business Supplies Limited","SINV00434441","79.54","Stationery","130209366","04/04/2018","Inclusion Support","Inclusion Support","R4308"
"Wolverhampton City Council","http://opendatacommunities.org/id/metropolitan-district-council/wolverhampton","700341","Acs Business Supplies Limited","SINV00437617","44.24","Stationery","130211506","25/04/2018","Looked After Children","Adoption and Residence Team & Allowances","R4308"
"Wolverhampton City Council","http://opendatacommunities.org/id/metropolitan-district-council/wolverhampton","700341","Acs Business Supplies Limited","SINV00435106","106.94","Stationery","130209930","11/04/2018","Child Protection","CIN/CP Social Work Unit - Area 5","R4308"
"Wolverhampton City Council","http://opendatacommunities.org/id/metropolitan-district-council/wolverhampton","700341","Acs Business Supplies Limited","SINV00434842","63.49","Stationery","130209927","11/04/2018","Safeguarding","Head of Service Quality and Safeguarding","R4308"
"Wolverhampton City Council","http://opendatacommunities.org/id/metropolitan-district-council/wolverhampton","700341","Acs Business Supplies Limited","SINV00435108","24.99","Stationery","130209932","11/04/2018","Governance Services","Scrutiny","R4308"
"Wolverhampton City Council","http://opendatacommunities.org/id/metropolitan-district-council/wolverhampton","700341","Acs Business Supplies Limited","SINV00435474","214.35","Stationery","130210437","11/04/2018","Early Intervention","EIP Locality 4 - Bingley","R4308"
"Wolverhampton City Council","http://opendatacommunities.org/id/metropolitan-district-council/wolverhampton","700341","Acs Business Supplies Limited","SINV00437042","36.71","Stationery","130211347","18/04/2018","Early Intervention","EIP Locality 6 � Dovecotes","R4308"
"Wolverhampton City Council","http://opendatacommunities.org/id/metropolitan-district-council/wolverhampton","700341","Acs Business Supplies Limited","SCRN00053789","-190.69","Stationery","130210632","18/04/2018","Adult Education","Service Wide","R4308"
"Wolverhampton City Council","http://opendatacommunities.org/id/metropolitan-district-council/wolverhampton","700341","Acs Business Supplies Limited","SINV00436493","29.70","Stationery","130211103","18/04/2018","Inclusion Support","Inclusion Support","R4308"
"Wolverhampton City Council","http://opendatacommunities.org/id/metropolitan-district-council/wolverhampton","700341","Acs Business Supplies Limited","SINV00434438","29.88","Stationery","130209363","04/04/2018","Skills","Connexions Contract","R4308"
"Wolverhampton City Council","http://opendatacommunities.org/id/metropolitan-district-council/wolverhampton","700341","Acs Business Supplies Limited","SINV00425673","190.69","Stationery","130203790","04/04/2018","Adult Education","Service Wide","R4308"
"Wolverhampton City Council","http://opendatacommunities.org/id/metropolitan-district-council/wolverhampton","700341","Acs Business Supplies Limited","SINV00434440","23.31","Stationery","130209365","04/04/2018","Safeguarding","Head of Service Quality and Safeguarding","R4308"
"Wolverhampton City Council","http://opendatacommunities.org/id/metropolitan-district-council/wolverhampton","700341","Acs Business Supplies Limited","SINV00434445","85.02","Stationery","130209370","04/04/2018","Revenues & Benefits","Revenues","R4308"
"Wolverhampton City Council","http://opendatacommunities.org/id/metropolitan-district-council/wolverhampton","700341","Acs Business Supplies Limited","SINV00433615","4.11","Stationery","130208984","04/04/2018","Governance Services","Scrutiny","R4308"
"Wolverhampton City Council","http://opendatacommunities.org/id/metropolitan-district-council/wolverhampton","700341","Acs Business Supplies Limited","SINV00438082","194.92","Stationery","130211736","25/04/2018","Strategic Director People","Strategic Director People","R4308"
"Wolverhampton City Council","http://opendatacommunities.org/id/metropolitan-district-council/wolverhampton","700341","Acs Business Supplies Limited","SINV00436492","259.22","Stationery","130211102","18/04/2018","Customer Services","City Direct","R4308"
"Wolverhampton City Council","http://opendatacommunities.org/id/metropolitan-district-council/wolverhampton","700341","Acs Business Supplies Limited","SINV00437041","33.54","Stationery","130211346","18/04/2018","Central Corporate Budgets","Miscellaneous Corporate Costs","R4308"
"Wolverhampton City Council","http://opendatacommunities.org/id/metropolitan-district-council/wolverhampton","700341","Acs Business Supplies Limited","SINV00427187","899.95","Stationery","130204647","11/04/2018","ICTS","Document Centre - General","R4308"
"Wolverhampton City Council","http://opendatacommunities.org/id/metropolitan-district-council/wolverhampton","700341","Acs Business Supplies Limited","SINV00434841","51.90","Stationery","130209926","11/04/2018","Looked After Children","LAC Education Team (LACE)","R4308"
"Wolverhampton City Council","http://opendatacommunities.org/id/metropolitan-district-council/wolverhampton","700341","Acs Business Supplies Limited","SINV00424525","38.70","Stationery","130212434","11/04/2018","Child Protection","CIN/CP Social Work Unit - Area 5","R4308"
"Wolverhampton City Council","http://opendatacommunities.org/id/metropolitan-district-council/wolverhampton","700341","Acs Business Supplies Limited","SINV00435107","22.09","Stationery","130209931","11/04/2018","Independent Living Service","Independent Living Service","R4308"
"Wolverhampton City Council","http://opendatacommunities.org/id/metropolitan-district-council/wolverhampton","700341","Acs Business Supplies Limited","SINV00434444","121.72","Stationery","130209369","04/04/2018","Legal Services","Legal Services","R4308"
"Wolverhampton City Council","http://opendatacommunities.org/id/metropolitan-district-council/wolverhampton","700341","Acs Business Supplies Limited","SINV00433614","26.97","Stationery","130208983","04/04/2018","Commercial Services","Corporate Procurement Unit","R4308"
"Wolverhampton City Council","http://opendatacommunities.org/id/metropolitan-district-council/wolverhampton","700341","Acs Business Supplies Limited","SCRN00052034","-17.50","Stationery","130203162","04/04/2018","Environmental Maintenance","Ground Maintenance East","R4308"
"Wolverhampton City Council","http://opendatacommunities.org/id/metropolitan-district-council/wolverhampton","700341","Acs Business Supplies Limited","SINV00438084","14.99","Stationery","130211737","25/04/2018","Bereavement Services","Cemeteries","R4308"
"Wolverhampton City Council","http://opendatacommunities.org/id/metropolitan-district-council/wolverhampton","700341","Acs Business Supplies Limited","SINV00438081","291.37","Stationery","130211735","25/04/2018","Democratic Services","Local Government Elections","R4308"
"Wolverhampton City Council","http://opendatacommunities.org/id/metropolitan-district-council/wolverhampton","700341","Acs Business Supplies Limited","SINV00435893","77.80","Stationery","130210633","13/04/2018","Child Protection","CIN/CP Social Work Unit - Area 4","R4308"
"Wolverhampton City Council","http://opendatacommunities.org/id/metropolitan-district-council/wolverhampton","700341","Acs Business Supplies Limited","SINV00437309","82.56","Stationery","130211505","20/04/2018","Revenues & Benefits","Revenues","R4308"
"Wolverhampton City Council","http://opendatacommunities.org/id/metropolitan-district-council/wolverhampton","700341","Acs Business Supplies Limited","SINV00435471","43.82","Stationery","130210434","11/04/2018","Democratic Services","Local Government Elections","R4308"
"Wolverhampton City Council","http://opendatacommunities.org/id/metropolitan-district-council/wolverhampton","700341","Acs Business Supplies Limited","SINV00435473","62.62","Stationery","130210436","11/04/2018","Older People Provider Services","Bradley Lodge Resource Centre","R4308"
"Wolverhampton City Council","http://opendatacommunities.org/id/metropolitan-district-council/wolverhampton","700341","Acs Business Supplies Limited","SINV00427190","179.99","Stationery","130204650","11/04/2018","ICTS","Document Centre - General","R4308"
"Wolverhampton City Council","http://opendatacommunities.org/id/metropolitan-district-council/wolverhampton","700341","Acs Business Supplies Limited","SINV00435320","112.00","Stationery","130209933","11/04/2018","Standards and Vulnerable Pupils","SEN Sensory Inclusion","R4308"
"Wolverhampton City Council","http://opendatacommunities.org/id/metropolitan-district-council/wolverhampton","700341","Acs Business Supplies Limited","SINV00436715","6.24","Stationery","130211213","18/04/2018","Community Safety","SWP - Infrastructure","R4308"
"Wolverhampton City Council","http://opendatacommunities.org/id/metropolitan-district-council/wolverhampton","700341","Acs Business Supplies Limited","SINV00436494","16.26","Stationery","130211104","18/04/2018","Adult Education","Service Wide","R4308"
"Wolverhampton City Council","http://opendatacommunities.org/id/metropolitan-district-council/wolverhampton","700341","Acs Business Supplies Limited","SINV00434437","117.50","Stationery","130209362","04/04/2018","Headstart","Headstart Phase 3","R4308"
"Wolverhampton City Council","http://opendatacommunities.org/id/metropolitan-district-council/wolverhampton","700341","Acs Business Supplies Limited","SINV00434442","186.27","Stationery","130209367","04/04/2018","Adult Education","Service Wide","R4308"
"Wolverhampton City Council","http://opendatacommunities.org/id/metropolitan-district-council/wolverhampton","700341","Acs Business Supplies Limited","SINV00434443","77.34","Stationery","130209368","04/04/2018","Facilities Management","i10 Facilities Management","R4308"
"Wolverhampton City Council","http://opendatacommunities.org/id/metropolitan-district-council/wolverhampton","700341","Acs Business Supplies Limited","SINV00434439","18.04","Stationery","130209364","04/04/2018","Looked After Children","Panel Expenses Fostering & Adoption","R4308"
"Wolverhampton City Council","http://opendatacommunities.org/id/metropolitan-district-council/wolverhampton","700341","Acs Business Supplies Limited","SINV00433421","3,995.88","Stationery","130210153","04/04/2018","Adult Education","The Maltings","R4308"
"Wolverhampton City Council","http://opendatacommunities.org/id/metropolitan-district-council/wolverhampton","700341","Acs Business Supplies Limited","SINV00431365","36.19","Stationery","130207623","04/04/2018","Looked After Children","Panel Expenses Fostering & Adoption","R4308"
"Wolverhampton City Council","http://opendatacommunities.org/id/metropolitan-district-council/wolverhampton","700341","Acs Business Supplies Limited","SINV00431365","43.00","Stationery","130207623","04/04/2018","Looked After Children","Adoption and Residence Team & Allowances","R4308"
"Wolverhampton City Council","http://opendatacommunities.org/id/metropolitan-district-council/wolverhampton","700341","Acs Business Supplies Limited","SINV00431365","-36.19","Stationery","130207623","04/04/2018","Looked After Children","Panel Expenses Fostering & Adoption","R4308"
"Wolverhampton City Council","http://opendatacommunities.org/id/metropolitan-district-council/wolverhampton","700341","Acs Business Supplies Limited","SINV00431365","36.19","Stationery","130207623","04/04/2018","Looked After Children","Panel Expenses Fostering & Adoption","R4308"
"Wolverhampton City Council","http://opendatacommunities.org/id/metropolitan-district-council/wolverhampton","700341","Acs Business Supplies Limited","SINV00437308","153.98","Stationery","130211504","20/04/2018","Democratic Services","Local Government Elections","R4308"
"Wolverhampton City Council","http://opendatacommunities.org/id/metropolitan-district-council/wolverhampton","700341","Acs Business Supplies Limited","SINV00438451","7.13","Stationery","130211738","25/04/2018","Learning Disability Provider","Ernest Bold Court","R4308"
"Wolverhampton City Council","http://opendatacommunities.org/id/metropolitan-district-council/wolverhampton","700341","Acs Business Supplies Limited","SINV00438080","214.90","Stationery","130211734","25/04/2018","Community Financial Support","Financial Assessments","R4308"
"Wolverhampton City Council","http://opendatacommunities.org/id/metropolitan-district-council/wolverhampton","700341","Acs Business Supplies Limited","SINV00435472","75.85","Stationery","130210435","11/04/2018","Community Financial Support","Financial Assessments","R4308"
"Wolverhampton City Council","http://opendatacommunities.org/id/metropolitan-district-council/wolverhampton","700341","Acs Business Supplies Limited","SINV00435475","233.00","Stationery","130210438","11/04/2018","Standards and Vulnerable Pupils","SEN Early Years Team","R4308"
"Wolverhampton City Council","http://opendatacommunities.org/id/metropolitan-district-council/wolverhampton","700341","Acs Business Supplies Limited","SINV00435321","66.90","Stationery","130209934","11/04/2018","Looked After Children","Head of Service - LAC","R4308"
"Wolverhampton City Council","http://opendatacommunities.org/id/metropolitan-district-council/wolverhampton","700341","Acs Business Supplies Limited","SINV00435104","167.95","Stationery","130209928","11/04/2018","Democratic Services","Local Government Elections","R4308"
"Wolverhampton City Council","http://opendatacommunities.org/id/metropolitan-district-council/wolverhampton","700341","Acs Business Supplies Limited","SINV00435105","38.99","Stationery","130209929","11/04/2018","Independent Living Service","Independent Living Service","R4308"
"Wolverhampton City Council","http://opendatacommunities.org/id/metropolitan-district-council/wolverhampton","700341","Acs Business Supplies Limited","SINV00437043","57.96","Stationery","130211348","18/04/2018","Bereavement Services","Cemeteries","R4308"
"Wolverhampton City Council","http://opendatacommunities.org/id/metropolitan-district-council/wolverhampton","700341","Acs Business Supplies Limited","SINV00437044","31.55","Stationery","130211349","18/04/2018","Democratic Services","Register Office","R4308"
"Wolverhampton City Council","http://opendatacommunities.org/id/metropolitan-district-council/wolverhampton","700341","Acs Business Supplies Limited","SINV00418475","113.61","Stationery","130198513","04/04/2018","Older People Provider Services","Bradley Lodge Resource Centre","R4308"
"Wolverhampton City Council","http://opendatacommunities.org/id/metropolitan-district-council/wolverhampton","700341","Acs Business Supplies Limited","SINV00433616","42.98","Stationery","130208985","04/04/2018","Governance Services","Scrutiny","R4308"
"Wolverhampton City Council","http://opendatacommunities.org/id/metropolitan-district-council/wolverhampton","700341","Acs Business Supplies Limited","SCRN00053431","-16.30","Stationery","130211100","04/04/2018","Fleet Services","Fleet Management","R4308"
"Wolverhampton City Council","http://opendatacommunities.org/id/metropolitan-district-council/wolverhampton","700604","P Kitterick","00035","940.00","TPP - Maintenance Contractor - General","190441951","04/04/2018","Transportation","Cycling Schemes - Bikeability","R5720"
"Wolverhampton City Council","http://opendatacommunities.org/id/metropolitan-district-council/wolverhampton","700604","P Kitterick","00036","1,050.00","TPP - Maintenance Contractor - General","190451882","30/04/2018","Transportation","Cycling Schemes - Bikeability","R5720"
"Wolverhampton City Council","http://opendatacommunities.org/id/metropolitan-district-council/wolverhampton","700604","P Kitterick","00036/1","80.00","Services - Professional Fees","190451883","30/04/2018","Transportation","Advisory Road Markings and Disabled Bays","R4400"
"Wolverhampton City Council","http://opendatacommunities.org/id/metropolitan-district-council/wolverhampton","700663","Partisip8/P Sicilia","745/1","80.00","Services - Professional Fees","190451889","27/04/2018","Transportation","Advisory Road Markings and Disabled Bays","R4400"
"Wolverhampton City Council","http://opendatacommunities.org/id/metropolitan-district-council/wolverhampton","700663","Partisip8/P Sicilia","745","1,845.00","TPP - Maintenance Contractor - General","190451888","27/04/2018","Transportation","Cycling Schemes - Bikeability","R5720"
"Wolverhampton City Council","http://opendatacommunities.org/id/metropolitan-district-council/wolverhampton","700663","Partisip8/P Sicilia","741","1,180.00","TPP - Maintenance Contractor - General","190441957","04/04/2018","Transportation","Cycling Schemes - Bikeability","R5720"
"Wolverhampton City Council","http://opendatacommunities.org/id/metropolitan-district-council/wolverhampton","700693","Adept Security Systems Limited","26595","298.67","Equipment - R & M","190448761","18/04/2018","Fleet Services","Fleet Management","R4003"
"Wolverhampton City Council","http://opendatacommunities.org/id/metropolitan-district-council/wolverhampton","700762","R Millington","00038","840.00","TPP - Maintenance Contractor - General","190451880","27/04/2018","Transportation","Cycling Schemes - Bikeability","R5720"
"Wolverhampton City Council","http://opendatacommunities.org/id/metropolitan-district-council/wolverhampton","700762","R Millington","00037","670.00","TPP - Maintenance Contractor - General","190441949","04/04/2018","Transportation","Cycling Schemes - Bikeability","R5720"
"Wolverhampton City Council","http://opendatacommunities.org/id/metropolitan-district-council/wolverhampton","700770","Adt Fire And Security PLC","34054449-02","249.69","Fixtures and Fittings - R&M","130212621","13/04/2018","Maintenance Programme","Centralised R&M","R2502"
"Wolverhampton City Council","http://opendatacommunities.org/id/metropolitan-district-council/wolverhampton","700770","Adt Fire And Security PLC","37492465-02","605.62","Fixtures and Fittings - R&M","130213488","20/04/2018","Maintenance Programme","Centralised R&M","R2502"
"Wolverhampton City Council","http://opendatacommunities.org/id/metropolitan-district-council/wolverhampton","700770","Adt Fire And Security PLC","32796909-02","298.96","Fixtures and Fittings - R&M","130211942","13/04/2018","Maintenance Programme","Centralised R&M","R2502"
"Wolverhampton City Council","http://opendatacommunities.org/id/metropolitan-district-council/wolverhampton","700770","Adt Fire And Security PLC","34037898-02","538.90","R&M - Departmental planned (external)","130211739","06/04/2018","Facilities Management","Caretakers Community Centre","R2001"
"Wolverhampton City Council","http://opendatacommunities.org/id/metropolitan-district-council/wolverhampton","700770","Adt Fire And Security PLC","38022926-02","222.00","Fixtures and Fittings - R&M","130212435","18/04/2018","Bereavement Services","Cemeteries","R2502"
"Wolverhampton City Council","http://opendatacommunities.org/id/metropolitan-district-council/wolverhampton","700770","Adt Fire And Security PLC","37918587-02","241.91","Fixtures and Fittings - R&M","130211105","04/04/2018","Maintenance Programme","Centralised R&M","R2502"
"Wolverhampton City Council","http://opendatacommunities.org/id/metropolitan-district-council/wolverhampton","700770","Adt Fire And Security PLC","37182266-02","241.91","Fixtures and Fittings - R&M","130211507","04/04/2018","Maintenance Programme","Centralised R&M","R2502"
"Wolverhampton City Council","http://opendatacommunities.org/id/metropolitan-district-council/wolverhampton","700770","Adt Fire And Security PLC","38011519-02","-329.61","Fixtures and Fittings - R&M","130211027","13/04/2018","Learning Disability Provider","Ernest Bold Court","R2502"
"Wolverhampton City Council","http://opendatacommunities.org/id/metropolitan-district-council/wolverhampton","700770","Adt Fire And Security PLC","35910025-02","679.94","Fixtures and Fittings - R&M","130211740","06/04/2018","Maintenance Programme","Centralised R&M","R2502"
"Wolverhampton City Council","http://opendatacommunities.org/id/metropolitan-district-council/wolverhampton","700770","Adt Fire And Security PLC","33446973-02","196.31","Services - Security","130213927","25/04/2018","Maintenance Programme","Centralised R&M","R4405"
"Wolverhampton City Council","http://opendatacommunities.org/id/metropolitan-district-council/wolverhampton","700836","Advanced Hygiene Limited","42685","38.15","Cleaning Supplies and Materials","130211474","04/04/2018","Schools","Dovecotes Primary School","R2705"
"Wolverhampton City Council","http://opendatacommunities.org/id/metropolitan-district-council/wolverhampton","700836","Advanced Hygiene Limited","42746","23.94","Cleaning Supplies and Materials","130211476","04/04/2018","Schools","Dovecotes Primary School","R2705"
"Wolverhampton City Council","http://opendatacommunities.org/id/metropolitan-district-council/wolverhampton","700836","Advanced Hygiene Limited","42740","135.60","Cleaning Supplies and Materials","130211475","04/04/2018","Schools","Dovecotes Primary School","R2705"
"Wolverhampton City Council","http://opendatacommunities.org/id/metropolitan-district-council/wolverhampton","700979","Af Blakemore/Blakemore Foodservice","5826635","421.36","Provisions (Resale)","130213099","25/04/2018","Visitor Economy","Art Gallery Tea Room","R4102"
"Wolverhampton City Council","http://opendatacommunities.org/id/metropolitan-district-council/wolverhampton","700979","Af Blakemore/Blakemore Foodservice","5843344","34.50","Provisions (Resale)","130213110","25/04/2018","Visitor Economy","Art Gallery Tea Room","R4102"
"Wolverhampton City Council","http://opendatacommunities.org/id/metropolitan-district-council/wolverhampton","700979","Af Blakemore/Blakemore Foodservice","5843050","132.22","Provisions (Resale)","130213109","25/04/2018","Visitor Economy","Bantock - Tea Rooms","R4102"
"Wolverhampton City Council","http://opendatacommunities.org/id/metropolitan-district-council/wolverhampton","700979","Af Blakemore/Blakemore Foodservice","5788763","354.65","Provisions (Not for resale)","130213066","25/04/2018","Older People Provider Services","Bradley Lodge Resource Centre","R4101"
"Wolverhampton City Council","http://opendatacommunities.org/id/metropolitan-district-council/wolverhampton","700979","Af Blakemore/Blakemore Foodservice","5820225","193.47","Provisions (Not for resale)","130213095","25/04/2018","Older People Provider Services","Bradley Lodge Resource Centre","R4101"
"Wolverhampton City Council","http://opendatacommunities.org/id/metropolitan-district-council/wolverhampton","700979","Af Blakemore/Blakemore Foodservice","5811290","30.25","Provisions (Not for resale)","130213084","25/04/2018","Older People Provider Services","Bradley Lodge Resource Centre","R4101"
"Wolverhampton City Council","http://opendatacommunities.org/id/metropolitan-district-council/wolverhampton","700979","Af Blakemore/Blakemore Foodservice","5771602","83.44","Provisions (Not for resale)","130213054","25/04/2018","Older People Provider Services","Bradley Lodge Resource Centre","R4101"
"Wolverhampton City Council","http://opendatacommunities.org/id/metropolitan-district-council/wolverhampton","700979","Af Blakemore/Blakemore Foodservice","5763332","272.75","Provisions (Not for resale)","130213049","25/04/2018","Older People Provider Services","Bradley Lodge Resource Centre","R4101"
"Wolverhampton City Council","http://opendatacommunities.org/id/metropolitan-district-council/wolverhampton","700979","Af Blakemore/Blakemore Foodservice","WCC000363","66,735.51","Provisions (Resale)","130210440","13/04/2018","Catering","Education Catering - General Overheads","R4102"
"Wolverhampton City Council","http://opendatacommunities.org/id/metropolitan-district-council/wolverhampton","700979","Af Blakemore/Blakemore Foodservice","5833674","225.73","Provisions (Resale)","130213102","20/04/2018","Visitor Economy","Bantock - Tea Rooms","R4102"
"Wolverhampton City Council","http://opendatacommunities.org/id/metropolitan-district-council/wolverhampton","700979","Af Blakemore/Blakemore Foodservice","5787382","446.60","Provisions (Resale)","130213062","20/04/2018","Visitor Economy","Art Gallery Tea Room","R4102"
"Wolverhampton City Council","http://opendatacommunities.org/id/metropolitan-district-council/wolverhampton","700979","Af Blakemore/Blakemore Foodservice","5819613","274.10","Provisions (Resale)","130213094","20/04/2018","Visitor Economy","Bantock - Tea Rooms","R4102"
"Wolverhampton City Council","http://opendatacommunities.org/id/metropolitan-district-council/wolverhampton","700979","Af Blakemore/Blakemore Foodservice","5825893","-2.52","Provisions (Not for resale)","130213496","20/04/2018","Older People Provider Services","Bradley Lodge Resource Centre","R4101"
"Wolverhampton City Council","http://opendatacommunities.org/id/metropolitan-district-council/wolverhampton","700979","Af Blakemore/Blakemore Foodservice","5806638","39.48","Provisions (Not for resale)","130213494","20/04/2018","Older People Provider Services","Bradley Lodge Resource Centre","R4101"
"Wolverhampton City Council","http://opendatacommunities.org/id/metropolitan-district-council/wolverhampton","700979","Af Blakemore/Blakemore Foodservice","5836961","12.43","Provisions (Not for resale)","130212725","20/04/2018","Older People Provider Services","Blakenhall Resource Centre","R4101"
"Wolverhampton City Council","http://opendatacommunities.org/id/metropolitan-district-council/wolverhampton","700979","Af Blakemore/Blakemore Foodservice","5812971","4.35","Provisions (Not for resale)","130213088","18/04/2018","Older People Provider Services","Blakenhall Resource Centre","R4101"
"Wolverhampton City Council","http://opendatacommunities.org/id/metropolitan-district-council/wolverhampton","700979","Af Blakemore/Blakemore Foodservice","5812971","20.09","Provisions (Not for resale)","130213088","18/04/2018","Older People Provider Services","Blakenhall Resource Centre","R4101"
"Wolverhampton City Council","http://opendatacommunities.org/id/metropolitan-district-council/wolverhampton","700979","Af Blakemore/Blakemore Foodservice","WCA000051","1,295.57","Provisions (Not for resale)","130210156","11/04/2018","Leisure Services","WV Active Catering","R4101"
"Wolverhampton City Council","http://opendatacommunities.org/id/metropolitan-district-council/wolverhampton","700979","Af Blakemore/Blakemore Foodservice","WCA000051","452.16","Provisions (Not for resale)","130210156","11/04/2018","Leisure Services","WV Active Catering","R4101"
"Wolverhampton City Council","http://opendatacommunities.org/id/metropolitan-district-council/wolverhampton","700979","Af Blakemore/Blakemore Foodservice","5829875","308.71","Provisions (Not for resale)","130212211","13/04/2018","Older People Provider Services","Blakenhall Resource Centre","R4101"
"Wolverhampton City Council","http://opendatacommunities.org/id/metropolitan-district-council/wolverhampton","700979","Af Blakemore/Blakemore Foodservice","WCC000367","853.47","Provisions (Resale)","130211947","20/04/2018","Catering","Meals on Wheels","R4102"
"Wolverhampton City Council","http://opendatacommunities.org/id/metropolitan-district-council/wolverhampton","700979","Af Blakemore/Blakemore Foodservice","5790611","-38.64","Provisions (Not for resale)","130213491","20/04/2018","Older People Provider Services","Bradley Lodge Resource Centre","R4101"
"Wolverhampton City Council","http://opendatacommunities.org/id/metropolitan-district-council/wolverhampton","700979","Af Blakemore/Blakemore Foodservice","5770140","274.51","Provisions (Resale)","130213052","20/04/2018","Visitor Economy","Art Gallery Tea Room","R4102"
"Wolverhampton City Council","http://opendatacommunities.org/id/metropolitan-district-council/wolverhampton","700979","Af Blakemore/Blakemore Foodservice","5785023","405.28","Provisions (Resale)","130213060","20/04/2018","Visitor Economy","Bantock - Tea Rooms","R4102"
"Wolverhampton City Council","http://opendatacommunities.org/id/metropolitan-district-council/wolverhampton","700979","Af Blakemore/Blakemore Foodservice","5835175","439.02","Provisions (Resale)","130213103","20/04/2018","Visitor Economy","Art Gallery Tea Room","R4102"
"Wolverhampton City Council","http://opendatacommunities.org/id/metropolitan-district-council/wolverhampton","700979","Af Blakemore/Blakemore Foodservice","5810335","203.62","Provisions (Resale)","130213081","25/04/2018","Visitor Economy","Art Gallery Tea Room","R4102"
"Wolverhampton City Council","http://opendatacommunities.org/id/metropolitan-district-council/wolverhampton","700979","Af Blakemore/Blakemore Foodservice","5841990","441.25","Provisions (Resale)","130213108","25/04/2018","Visitor Economy","Bantock - Tea Rooms","R4102"
"Wolverhampton City Council","http://opendatacommunities.org/id/metropolitan-district-council/wolverhampton","700979","Af Blakemore/Blakemore Foodservice","5787579","60.32","Provisions (Resale)","130213064","25/04/2018","Adult Education","Caf�","R4102"
"Wolverhampton City Council","http://opendatacommunities.org/id/metropolitan-district-council/wolverhampton","700979","Af Blakemore/Blakemore Foodservice","5797895","45.41","Provisions (Not for resale)","130213072","25/04/2018","Older People Provider Services","Bradley Lodge Resource Centre","R4101"
"Wolverhampton City Council","http://opendatacommunities.org/id/metropolitan-district-council/wolverhampton","700979","Af Blakemore/Blakemore Foodservice","5820238","33.05","Provisions (Not for resale)","130213096","25/04/2018","Older People Provider Services","Bradley Lodge Resource Centre","R4101"
"Wolverhampton City Council","http://opendatacommunities.org/id/metropolitan-district-council/wolverhampton","700979","Af Blakemore/Blakemore Foodservice","5811297","103.63","Provisions (Not for resale)","130213085","25/04/2018","Older People Provider Services","Bradley Lodge Resource Centre","R4101"
"Wolverhampton City Council","http://opendatacommunities.org/id/metropolitan-district-council/wolverhampton","700979","Af Blakemore/Blakemore Foodservice","5779253","56.77","Provisions (Not for resale)","130213059","25/04/2018","Older People Provider Services","Bradley Lodge Resource Centre","R4101"
"Wolverhampton City Council","http://opendatacommunities.org/id/metropolitan-district-council/wolverhampton","700979","Af Blakemore/Blakemore Foodservice","5803995","22.85","Provisions (Not for resale)","130213077","25/04/2018","Older People Provider Services","Bradley Lodge Resource Centre","R4101"
"Wolverhampton City Council","http://opendatacommunities.org/id/metropolitan-district-council/wolverhampton","700979","Af Blakemore/Blakemore Foodservice","WCC000360","18.08","Provisions (Not for resale)","130209492","11/04/2018","Leisure Services","WV Active Catering","R4101"
"Wolverhampton City Council","http://opendatacommunities.org/id/metropolitan-district-council/wolverhampton","700979","Af Blakemore/Blakemore Foodservice","WCC000360","200.17","Provisions (Not for resale)","130209492","11/04/2018","Leisure Services","WV Active Catering","R4101"
"Wolverhampton City Council","http://opendatacommunities.org/id/metropolitan-district-council/wolverhampton","700979","Af Blakemore/Blakemore Foodservice","WCC000352","61,603.10","Provisions (Resale)","130211023","04/04/2018","Catering","Education Catering - General Overheads","R4102"
"Wolverhampton City Council","http://opendatacommunities.org/id/metropolitan-district-council/wolverhampton","700979","Af Blakemore/Blakemore Foodservice","5803119","329.48","Provisions (Resale)","130213076","25/04/2018","Visitor Economy","Art Gallery Tea Room","R4102"
"Wolverhampton City Council","http://opendatacommunities.org/id/metropolitan-district-council/wolverhampton","700979","Af Blakemore/Blakemore Foodservice","5787575","249.68","Provisions (Resale)","130213063","25/04/2018","Adult Education","Caf�","R4102"
"Wolverhampton City Council","http://opendatacommunities.org/id/metropolitan-district-council/wolverhampton","700979","Af Blakemore/Blakemore Foodservice","5828764","98.67","Provisions (Not for resale)","130213497","25/04/2018","Older People Provider Services","Bradley Lodge Resource Centre","R4101"
"Wolverhampton City Council","http://opendatacommunities.org/id/metropolitan-district-council/wolverhampton","700979","Af Blakemore/Blakemore Foodservice","5822922","24.88","Provisions (Not for resale)","130213097","25/04/2018","Older People Provider Services","Bradley Lodge Resource Centre","R4101"
"Wolverhampton City Council","http://opendatacommunities.org/id/metropolitan-district-council/wolverhampton","700979","Af Blakemore/Blakemore Foodservice","5803996","135.88","Provisions (Not for resale)","130213078","25/04/2018","Older People Provider Services","Bradley Lodge Resource Centre","R4101"
"Wolverhampton City Council","http://opendatacommunities.org/id/metropolitan-district-council/wolverhampton","700979","Af Blakemore/Blakemore Foodservice","5837061","185.18","Provisions (Not for resale)","130213106","25/04/2018","Older People Provider Services","Bradley Lodge Resource Centre","R4101"
"Wolverhampton City Council","http://opendatacommunities.org/id/metropolitan-district-council/wolverhampton","700979","Af Blakemore/Blakemore Foodservice","5828779","11.92","Provisions (Not for resale)","130213498","25/04/2018","Older People Provider Services","Bradley Lodge Resource Centre","R4101"
"Wolverhampton City Council","http://opendatacommunities.org/id/metropolitan-district-council/wolverhampton","700979","Af Blakemore/Blakemore Foodservice","5762898","41.39","Provisions (Not for resale)","130213048","25/04/2018","Older People Provider Services","Bradley Lodge Resource Centre","R4101"
"Wolverhampton City Council","http://opendatacommunities.org/id/metropolitan-district-council/wolverhampton","700979","Af Blakemore/Blakemore Foodservice","5827184","38.75","Provisions (Resale)","130213101","20/04/2018","Adult Education","Caf�","R4102"
"Wolverhampton City Council","http://opendatacommunities.org/id/metropolitan-district-council/wolverhampton","700979","Af Blakemore/Blakemore Foodservice","WCC000362","43,296.43","Provisions (Resale)","130210439","13/04/2018","Catering","Education Catering - General Overheads","R4102"
"Wolverhampton City Council","http://opendatacommunities.org/id/metropolitan-district-council/wolverhampton","700979","Af Blakemore/Blakemore Foodservice","WCC000366","798.55","Provisions (Resale)","130210443","13/04/2018","Catering","Civic Centre Catering","R4102"
"Wolverhampton City Council","http://opendatacommunities.org/id/metropolitan-district-council/wolverhampton","700979","Af Blakemore/Blakemore Foodservice","5799740","-176.72","Provisions (Resale)","130213492","20/04/2018","Catering","Education Catering - General Overheads","R4102"
"Wolverhampton City Council","http://opendatacommunities.org/id/metropolitan-district-council/wolverhampton","700979","Af Blakemore/Blakemore Foodservice","5769194","-2.89","Provisions (Not for resale)","130213489","20/04/2018","Older People Provider Services","Bradley Lodge Resource Centre","R4101"
"Wolverhampton City Council","http://opendatacommunities.org/id/metropolitan-district-council/wolverhampton","700979","Af Blakemore/Blakemore Foodservice","5776435","342.59","Provisions (Resale)","130213055","20/04/2018","Visitor Economy","Bantock - Tea Rooms","R4102"
"Wolverhampton City Council","http://opendatacommunities.org/id/metropolitan-district-council/wolverhampton","700979","Af Blakemore/Blakemore Foodservice","5778271","195.99","Provisions (Resale)","130213056","20/04/2018","Visitor Economy","Art Gallery Tea Room","R4102"
"Wolverhampton City Council","http://opendatacommunities.org/id/metropolitan-district-council/wolverhampton","700979","Af Blakemore/Blakemore Foodservice","5794851","34.00","Provisions (Resale)","130213068","18/04/2018","Strategic Organisation Development","Blakenhall Community & Healthy Living Centre","R4102"
"Wolverhampton City Council","http://opendatacommunities.org/id/metropolitan-district-council/wolverhampton","700979","Af Blakemore/Blakemore Foodservice","WCC000358","310.75","Provisions (Not for resale)","130209490","11/04/2018","Leisure Services","Bert Williams Leisure Centre Caf�","R4101"
"Wolverhampton City Council","http://opendatacommunities.org/id/metropolitan-district-council/wolverhampton","700979","Af Blakemore/Blakemore Foodservice","WCC000357","1,067.17","Provisions (Not for resale)","130209489","11/04/2018","Leisure Services","Bert Williams Leisure Centre Caf�","R4101"
"Wolverhampton City Council","http://opendatacommunities.org/id/metropolitan-district-council/wolverhampton","700979","Af Blakemore/Blakemore Foodservice","WCC000357","521.63","Provisions (Not for resale)","130209489","11/04/2018","Leisure Services","Bert Williams Leisure Centre Caf�","R4101"
"Wolverhampton City Council","http://opendatacommunities.org/id/metropolitan-district-council/wolverhampton","700979","Af Blakemore/Blakemore Foodservice","WCC000365","3,537.78","Provisions (Resale)","130210442","13/04/2018","Catering","Civic Centre Catering","R4102"
"Wolverhampton City Council","http://opendatacommunities.org/id/metropolitan-district-council/wolverhampton","700979","Af Blakemore/Blakemore Foodservice","WCC000364","357.52","Provisions (Resale)","130210441","13/04/2018","Catering","Meals on Wheels","R4102"
"Wolverhampton City Council","http://opendatacommunities.org/id/metropolitan-district-council/wolverhampton","700979","Af Blakemore/Blakemore Foodservice","5805117","-23.80","Provisions (Not for resale)","130213493","20/04/2018","Older People Provider Services","Bradley Lodge Resource Centre","R4101"
"Wolverhampton City Council","http://opendatacommunities.org/id/metropolitan-district-council/wolverhampton","700979","Af Blakemore/Blakemore Foodservice","5818355","159.22","Provisions (Resale)","130213091","20/04/2018","Visitor Economy","Art Gallery Tea Room","R4102"
"Wolverhampton City Council","http://opendatacommunities.org/id/metropolitan-district-council/wolverhampton","700979","Af Blakemore/Blakemore Foodservice","5768314","306.51","Provisions (Resale)","130213050","20/04/2018","Visitor Economy","Bantock - Tea Rooms","R4102"
"Wolverhampton City Council","http://opendatacommunities.org/id/metropolitan-district-council/wolverhampton","700979","Af Blakemore/Blakemore Foodservice","5816584","241.60","Provisions (Resale)","130213090","20/04/2018","Visitor Economy","Bantock - Tea Rooms","R4102"
"Wolverhampton City Council","http://opendatacommunities.org/id/metropolitan-district-council/wolverhampton","700979","Af Blakemore/Blakemore Foodservice","5813462","-203.62","Provisions (Resale)","130213287","20/04/2018","Visitor Economy","Art Gallery Tea Room","R4102"
"Wolverhampton City Council","http://opendatacommunities.org/id/metropolitan-district-council/wolverhampton","700979","Af Blakemore/Blakemore Foodservice","5811645","13.21","Provisions (Not for resale)","130213087","25/04/2018","Older People Provider Services","Bradley Lodge Resource Centre","R4101"
"Wolverhampton City Council","http://opendatacommunities.org/id/metropolitan-district-council/wolverhampton","700979","Af Blakemore/Blakemore Foodservice","5795819","248.55","Provisions (Resale)","130213069","25/04/2018","Visitor Economy","Art Gallery Tea Room","R4102"
"Wolverhampton City Council","http://opendatacommunities.org/id/metropolitan-district-council/wolverhampton","700979","Af Blakemore/Blakemore Foodservice","5804033","180.23","Provisions (Resale)","130213079","25/04/2018","Visitor Economy","Bantock - Tea Rooms","R4102"
"Wolverhampton City Council","http://opendatacommunities.org/id/metropolitan-district-council/wolverhampton","700979","Af Blakemore/Blakemore Foodservice","5811318","14.17","Provisions (Not for resale)","130213086","25/04/2018","Older People Provider Services","Bradley Lodge Resource Centre","R4101"
"Wolverhampton City Council","http://opendatacommunities.org/id/metropolitan-district-council/wolverhampton","700979","Af Blakemore/Blakemore Foodservice","5788760","8.06","Provisions (Not for resale)","130213065","25/04/2018","Older People Provider Services","Bradley Lodge Resource Centre","R4101"
"Wolverhampton City Council","http://opendatacommunities.org/id/metropolitan-district-council/wolverhampton","700979","Af Blakemore/Blakemore Foodservice","5797926","23.92","Provisions (Not for resale)","130213074","25/04/2018","Older People Provider Services","Bradley Lodge Resource Centre","R4101"
"Wolverhampton City Council","http://opendatacommunities.org/id/metropolitan-district-council/wolverhampton","700979","Af Blakemore/Blakemore Foodservice","5837068","40.28","Provisions (Not for resale)","130213107","25/04/2018","Older People Provider Services","Bradley Lodge Resource Centre","R4101"
"Wolverhampton City Council","http://opendatacommunities.org/id/metropolitan-district-council/wolverhampton","700979","Af Blakemore/Blakemore Foodservice","5797902","160.26","Provisions (Not for resale)","130213073","25/04/2018","Older People Provider Services","Bradley Lodge Resource Centre","R4101"
"Wolverhampton City Council","http://opendatacommunities.org/id/metropolitan-district-council/wolverhampton","700979","Af Blakemore/Blakemore Foodservice","5770278","-3.00","Provisions (Not for resale)","130213053","18/04/2018","Older People Provider Services","Blakenhall Resource Centre","R4101"
"Wolverhampton City Council","http://opendatacommunities.org/id/metropolitan-district-council/wolverhampton","700979","Af Blakemore/Blakemore Foodservice","WCC000359","773.23","Provisions (Not for resale)","130209491","11/04/2018","Leisure Services","WV Active Catering - Central","R4101"
"Wolverhampton City Council","http://opendatacommunities.org/id/metropolitan-district-council/wolverhampton","700979","Af Blakemore/Blakemore Foodservice","WCC000359","246.82","Provisions (Not for resale)","130209491","11/04/2018","Leisure Services","WV Active Catering - Central","R4101"
"Wolverhampton City Council","http://opendatacommunities.org/id/metropolitan-district-council/wolverhampton","701100","Aggregate Industries UK Limited","26201803","110.22","Materials","130208116","04/04/2018","Highways Maintenance","Patching","R4007"
"Wolverhampton City Council","http://opendatacommunities.org/id/metropolitan-district-council/wolverhampton","701111","Agilisys Limited","1228152","4,000.00","Computing - Purchase of Software","130205052","25/04/2018","Central Corporate Budgets","FutureWorks Programme Team","R4531"
"Wolverhampton City Council","http://opendatacommunities.org/id/metropolitan-district-council/wolverhampton","701111","Agilisys Limited","1227926","1,624.38","Computing - Licences","130208286","04/04/2018","Strategic Finance","Agresso System Support","R4535"
"Wolverhampton City Council","http://opendatacommunities.org/id/metropolitan-district-council/wolverhampton","701111","Agilisys Limited","1228124","3,625.00","Computing - Purchase of Software","130204341","25/04/2018","Strategic Finance","Agresso System Support","R4531"
"Wolverhampton City Council","http://opendatacommunities.org/id/metropolitan-district-council/wolverhampton","701155","Aidapt Bathrooms Limited","340197","1,880.00","Equipment - Purchase","130214086","27/04/2018","Independent Living Service","Independent Living Service","R4000"
"Wolverhampton City Council","http://opendatacommunities.org/id/metropolitan-district-council/wolverhampton","701155","Aidapt Bathrooms Limited","340197","27.50","Equipment - Purchase","130214086","27/04/2018","Independent Living Service","Independent Living Service","R4000"
"Wolverhampton City Council","http://opendatacommunities.org/id/metropolitan-district-council/wolverhampton","701265","Airport Express West Midlands Limited","1694A","1,600.00","Client Transport","130212438","25/04/2018","School Planning & Resources","Secondary- Transport","R3042"
"Wolverhampton City Council","http://opendatacommunities.org/id/metropolitan-district-council/wolverhampton","701265","Airport Express West Midlands Limited","1692","360.00","Client Transport","130211508","06/04/2018","School Planning & Resources","Special - Transport","R3042"
"Wolverhampton City Council","http://opendatacommunities.org/id/metropolitan-district-council/wolverhampton","701276","Airport-Link","BDW103","1,971.28","Client Transport","130211948","06/04/2018","School Planning & Resources","Special - Transport","R3042"
"Wolverhampton City Council","http://opendatacommunities.org/id/metropolitan-district-council/wolverhampton","701342","AKW Medi-Care Limited","1594778","525.35","Adaptations","130212439","13/04/2018","Independent Living Service","Independent Living Service","R4411"
"Wolverhampton City Council","http://opendatacommunities.org/id/metropolitan-district-council/wolverhampton","701393","Aldersley Church Early Learning Committee","NEF Summer 2018 INST 1","10,098.00","TPP - Private Nursery Education Funding","190451850","27/04/2018","Early Years","Early Years Universal Entitlement for 3 and 4 Year Olds","R5035"
"Wolverhampton City Council","http://opendatacommunities.org/id/metropolitan-district-council/wolverhampton","701393","Aldersley Church Early Learning Committee","TFT Summer 2018 Inst 1","2,631.53","Grant Payments","190451861","27/04/2018","Early Years","Early Years Entitlement Funding for Disadvantaged 2 Year Olds","R4700"
"Wolverhampton City Council","http://opendatacommunities.org/id/metropolitan-district-council/wolverhampton","701394","Aldersley High Sch/Aldersley Acad Tr","SEN Resource Base Spring Term 2018 - Aldersley Academy","7,220.58","Grant Payments","190441799","04/04/2018","Schools","Special Schools Top Up Contingency","R4700"
"Wolverhampton City Council","http://opendatacommunities.org/id/metropolitan-district-council/wolverhampton","701401","Alexander Dennis Limited","1401376","399.66","Equipment - Purchase","190451773","27/04/2018","Fleet Services","Fleet Management","R4000"
"Wolverhampton City Council","http://opendatacommunities.org/id/metropolitan-district-council/wolverhampton","701401","Alexander Dennis Limited","1462110","92.63","Equipment - Purchase","190449715","20/04/2018","Fleet Services","Fleet Management","R4000"
"Wolverhampton City Council","http://opendatacommunities.org/id/metropolitan-district-council/wolverhampton","701401","Alexander Dennis Limited","1410657","47.11","Equipment - Purchase","190451980","27/04/2018","Fleet Services","Fleet Management","R4000"
"Wolverhampton City Council","http://opendatacommunities.org/id/metropolitan-district-council/wolverhampton","701401","Alexander Dennis Limited","1410657","10.07","Equipment - Purchase","190451980","27/04/2018","Fleet Services","Fleet Management","R4000"
"Wolverhampton City Council","http://opendatacommunities.org/id/metropolitan-district-council/wolverhampton","701401","Alexander Dennis Limited","1410657","19.63","Equipment - Purchase","190451980","27/04/2018","Fleet Services","Fleet Management","R4000"
"Wolverhampton City Council","http://opendatacommunities.org/id/metropolitan-district-council/wolverhampton","701401","Alexander Dennis Limited","1410657","3.42","Equipment - Purchase","190451980","27/04/2018","Fleet Services","Fleet Management","R4000"
"Wolverhampton City Council","http://opendatacommunities.org/id/metropolitan-district-council/wolverhampton","701405","Alfred Bagnall & Sons (Mids) Limited","16560","-134.56","Construction and Conversion","130196695","18/04/2018","-","Corporate Asset Management","C1100"
"Wolverhampton City Council","http://opendatacommunities.org/id/metropolitan-district-council/wolverhampton","701405","Alfred Bagnall & Sons (Mids) Limited","16469","711.00","R&M - Departmental planned (internal)","130214238","27/04/2018","Facilities Management","Magistrates","R2000"
"Wolverhampton City Council","http://opendatacommunities.org/id/metropolitan-district-council/wolverhampton","701405","Alfred Bagnall & Sons (Mids) Limited","16424","5,862.50","R&M - Departmental planned (internal)","130212901","18/04/2018","Maintenance Programme","Centralised R&M","R2000"
"Wolverhampton City Council","http://opendatacommunities.org/id/metropolitan-district-council/wolverhampton","701405","Alfred Bagnall & Sons (Mids) Limited","16734","3,729.00","R&M - Departmental planned (internal)","130214239","27/04/2018","Facilities Management","Magistrates","R2000"
"Wolverhampton City Council","http://opendatacommunities.org/id/metropolitan-district-council/wolverhampton","701405","Alfred Bagnall & Sons (Mids) Limited","16735","1,501.00","R&M - Departmental planned (internal)","130212902","18/04/2018","Facilities Management","Magistrates","R2000"
"Wolverhampton City Council","http://opendatacommunities.org/id/metropolitan-district-council/wolverhampton","701417","All Saints Action Network Limited","TFT Summer 2018 Inst 1","15,279.84","Grant Payments","190451861","27/04/2018","Early Years","Early Years Entitlement Funding for Disadvantaged 2 Year Olds","R4700"
"Wolverhampton City Council","http://opendatacommunities.org/id/metropolitan-district-council/wolverhampton","701417","All Saints Action Network Limited","NEF Summer 2018 INST 1","20,655.00","TPP - Private Nursery Education Funding","190451850","27/04/2018","Early Years","Early Years Universal Entitlement for 3 and 4 Year Olds","R5035"
"Wolverhampton City Council","http://opendatacommunities.org/id/metropolitan-district-council/wolverhampton","701431","Allglass Systems Limited","238","4,547.06","R&M - Departmental planned (external)","130212903","18/04/2018","Corporate Asset Management","Centralised Planned Maintenance","R2001"
"Wolverhampton City Council","http://opendatacommunities.org/id/metropolitan-district-council/wolverhampton","701439","Allstar Business Solutions Limited","E2009617556","102.42","Petrol","190451804","27/04/2018","Fleet Services","Fleet Management","R3000"
"Wolverhampton City Council","http://opendatacommunities.org/id/metropolitan-district-council/wolverhampton","701439","Allstar Business Solutions Limited","E2009617557","8.34","Petrol","190451805","27/04/2018","Fleet Services","Fleet Management","R3000"
"Wolverhampton City Council","http://opendatacommunities.org/id/metropolitan-district-council/wolverhampton","701439","Allstar Business Solutions Limited","E2009557403","49.01","Petrol","190446852","11/04/2018","Fleet Services","Fleet Management","R3000"
"Wolverhampton City Council","http://opendatacommunities.org/id/metropolitan-district-council/wolverhampton","701439","Allstar Business Solutions Limited","E2009557403","561.56","Petrol","190446852","11/04/2018","Fleet Services","Fleet Management","R3000"
"Wolverhampton City Council","http://opendatacommunities.org/id/metropolitan-district-council/wolverhampton","701439","Allstar Business Solutions Limited","E2009557403","1.65","Petrol","190446852","11/04/2018","Fleet Services","Fleet Management","R3000"
"Wolverhampton City Council","http://opendatacommunities.org/id/metropolitan-district-council/wolverhampton","701439","Allstar Business Solutions Limited","E2009616513","886.13","Petrol","190451803","27/04/2018","Fleet Services","Fleet Management","R3000"
"Wolverhampton City Council","http://opendatacommunities.org/id/metropolitan-district-council/wolverhampton","701502","Andrews Creative Services","AC2018-01","200.00","Services - Professional Fees","130212728","18/04/2018","Democratic Services","Mayoral Expenses","R4400"
"Wolverhampton City Council","http://opendatacommunities.org/id/metropolitan-district-council/wolverhampton","701509","Angel Springs Limited (Waterlogic)","4149001","18.48","Catering","130213294","20/04/2018","Visitor Economy","Archives","R4100"
"Wolverhampton City Council","http://opendatacommunities.org/id/metropolitan-district-council/wolverhampton","701509","Angel Springs Limited (Waterlogic)","4210719","9.72","Provisions (Not for resale)","130212348","11/04/2018","Environmental Maintenance","Ground Maintenance West","R4101"
"Wolverhampton City Council","http://opendatacommunities.org/id/metropolitan-district-council/wolverhampton","701509","Angel Springs Limited (Waterlogic)","4086829","15.64","Provisions (Not for resale)","130210862","04/04/2018","Early Intervention","EIP Locality 2 � Bilston/Rocket Pool","R4101"
"Wolverhampton City Council","http://opendatacommunities.org/id/metropolitan-district-council/wolverhampton","701509","Angel Springs Limited (Waterlogic)","4149033","10.30","Provisions (Not for resale)","130210864","04/04/2018","Facilities Management","Culwell Street Depot","R4101"
"Wolverhampton City Council","http://opendatacommunities.org/id/metropolitan-district-council/wolverhampton","701509","Angel Springs Limited (Waterlogic)","4265923","10.30","Provisions (Not for resale)","130213806","25/04/2018","Operation & Maintenance of Existing Network","Condition Surveys","R4101"
"Wolverhampton City Council","http://opendatacommunities.org/id/metropolitan-district-council/wolverhampton","701509","Angel Springs Limited (Waterlogic)","4211451","9.72","Provisions (Not for resale)","130212350","18/04/2018","Operation & Maintenance of Existing Network","Condition Surveys","R4101"
"Wolverhampton City Council","http://opendatacommunities.org/id/metropolitan-district-council/wolverhampton","701509","Angel Springs Limited (Waterlogic)","4149000","12.96","Provisions (Not for resale)","130212346","11/04/2018","Operation & Maintenance of Existing Network","Condition Surveys","R4101"
"Wolverhampton City Council","http://opendatacommunities.org/id/metropolitan-district-council/wolverhampton","701509","Angel Springs Limited (Waterlogic)","4211485","15.64","Provisions (Not for resale)","130212351","11/04/2018","Early Intervention","EIP Locality 8 � Children�s Village","R4101"
"Wolverhampton City Council","http://opendatacommunities.org/id/metropolitan-district-council/wolverhampton","701509","Angel Springs Limited (Waterlogic)","2817581","6.48","Provisions (Not for resale)","130210858","04/04/2018","Housing Revenue Account - Communities","Carelink","R4101"
"Wolverhampton City Council","http://opendatacommunities.org/id/metropolitan-district-council/wolverhampton","701509","Angel Springs Limited (Waterlogic)","2817581","10.30","Provisions (Not for resale)","130210858","04/04/2018","Housing Revenue Account - Communities","Carelink","R4101"
"Wolverhampton City Council","http://opendatacommunities.org/id/metropolitan-district-council/wolverhampton","701509","Angel Springs Limited (Waterlogic)","4148992","10.30","Provisions (Not for resale)","130210863","04/04/2018","Housing Revenue Account - Communities","Carelink","R4101"
"Wolverhampton City Council","http://opendatacommunities.org/id/metropolitan-district-council/wolverhampton","701509","Angel Springs Limited (Waterlogic)","3824996","23.26","Provisions (Not for resale)","130210860","04/04/2018","Housing Revenue Account - Communities","Carelink","R4101"
"Wolverhampton City Council","http://opendatacommunities.org/id/metropolitan-district-council/wolverhampton","701509","Angel Springs Limited (Waterlogic)","4265918","12.96","Provisions (Not for resale)","130213682","25/04/2018","Fleet Services","Passenger Transport - General","R4101"
"Wolverhampton City Council","http://opendatacommunities.org/id/metropolitan-district-council/wolverhampton","701509","Angel Springs Limited (Waterlogic)","4148998","6.48","Provisions (Not for resale)","130214088","25/04/2018","Headstart","Headstart Phase 3","R4101"
"Wolverhampton City Council","http://opendatacommunities.org/id/metropolitan-district-council/wolverhampton","701509","Angel Springs Limited (Waterlogic)","4093022","20.02","Provisions (Not for resale)","130211742","13/04/2018","Operation & Maintenance of Existing Network","Condition Surveys","R4101"
"Wolverhampton City Council","http://opendatacommunities.org/id/metropolitan-district-council/wolverhampton","701509","Angel Springs Limited (Waterlogic)","4040990","9.72","Provisions (Not for resale)","130211741","06/04/2018","Operation & Maintenance of Existing Network","Condition Surveys","R4101"
"Wolverhampton City Council","http://opendatacommunities.org/id/metropolitan-district-council/wolverhampton","701509","Angel Springs Limited (Waterlogic)","3393625","6.48","Provisions (Not for resale)","130213499","20/04/2018","Housing Revenue Account - Communities","Carelink","R4101"
"Wolverhampton City Council","http://opendatacommunities.org/id/metropolitan-district-council/wolverhampton","701509","Angel Springs Limited (Waterlogic)","3986817","23.26","Provisions (Not for resale)","130212344","18/04/2018","Operation & Maintenance of Existing Network","Condition Surveys","R4101"
"Wolverhampton City Council","http://opendatacommunities.org/id/metropolitan-district-council/wolverhampton","701509","Angel Springs Limited (Waterlogic)","4148272","10.30","Provisions (Not for resale)","130212345","11/04/2018","Environmental Maintenance","Ground Maintenance West","R4101"
"Wolverhampton City Council","http://opendatacommunities.org/id/metropolitan-district-council/wolverhampton","701509","Angel Springs Limited (Waterlogic)","3659742","20.02","Provisions (Not for resale)","130210859","04/04/2018","Housing Revenue Account - Communities","Carelink","R4101"
"Wolverhampton City Council","http://opendatacommunities.org/id/metropolitan-district-council/wolverhampton","701509","Angel Springs Limited (Waterlogic)","4210722","6.48","Provisions (Not for resale)","130211510","04/04/2018","Environmental Maintenance","Arbor Scheme","R4101"
"Wolverhampton City Council","http://opendatacommunities.org/id/metropolitan-district-council/wolverhampton","701509","Angel Springs Limited (Waterlogic)","4149038","15.64","Provisions (Not for resale)","130212347","11/04/2018","Early Intervention","EIP Locality 8 � Children�s Village","R4101"
"Wolverhampton City Council","http://opendatacommunities.org/id/metropolitan-district-council/wolverhampton","701509","Angel Springs Limited (Waterlogic)","4210720","6.48","Provisions (Not for resale)","130212349","11/04/2018","Environmental Maintenance","Ground Maintenance East","R4101"
"Wolverhampton City Council","http://opendatacommunities.org/id/metropolitan-district-council/wolverhampton","701509","Angel Springs Limited (Waterlogic)","4149035","15.64","Provisions (Not for resale)","130210865","04/04/2018","Facilities Management","Culwell Street Depot","R4101"
"Wolverhampton City Council","http://opendatacommunities.org/id/metropolitan-district-council/wolverhampton","701509","Angel Springs Limited (Waterlogic)","4210721","9.72","Provisions (Not for resale)","130211509","04/04/2018","Environmental Maintenance","Arbor Scheme","R4101"
"Wolverhampton City Council","http://opendatacommunities.org/id/metropolitan-district-council/wolverhampton","701509","Angel Springs Limited (Waterlogic)","3986809","10.30","Provisions (Not for resale)","130210861","04/04/2018","Housing Revenue Account - Communities","Carelink","R4101"
"Wolverhampton City Council","http://opendatacommunities.org/id/metropolitan-district-council/wolverhampton","701509","Angel Springs Limited (Waterlogic)","4211446","62.40","Provisions (Not for resale)","130213681","25/04/2018","Fleet Services","Passenger Transport - General","R4101"
"Wolverhampton City Council","http://opendatacommunities.org/id/metropolitan-district-council/wolverhampton","701509","Angel Springs Limited (Waterlogic)","4265960","210.50","Provisions (Not for resale)","130213683","25/04/2018","Fleet Services","Fleet Management","R4101"
"Wolverhampton City Council","http://opendatacommunities.org/id/metropolitan-district-council/wolverhampton","701512","Anglia Dna Services Limited","4813","106.00","Services - Professional Fees","130211950","11/04/2018","Child Protection","Head of Service - CINCP","R4400"
"Wolverhampton City Council","http://opendatacommunities.org/id/metropolitan-district-council/wolverhampton","701512","Anglia Dna Services Limited","4798","93.50","Services - Professional Fees","130211949","11/04/2018","Child Protection","Head of Service - CINCP","R4400"
"Wolverhampton City Council","http://opendatacommunities.org/id/metropolitan-district-council/wolverhampton","701512","Anglia Dna Services Limited","4931","124.67","Services - Professional Fees","130213296","25/04/2018","Legal Services","Centralised External Legal Costs","R4400"
"Wolverhampton City Council","http://opendatacommunities.org/id/metropolitan-district-council/wolverhampton","701547","Apetito Limited","9002281766","1,046.07","Provisions (Resale)","130211106","18/04/2018","Catering","Meals on Wheels","R4102"
"Wolverhampton City Council","http://opendatacommunities.org/id/metropolitan-district-council/wolverhampton","701547","Apetito Limited","9002266276","1,243.56","Provisions (Resale)","130208775","04/04/2018","Catering","Meals on Wheels","R4102"
"Wolverhampton City Council","http://opendatacommunities.org/id/metropolitan-district-council/wolverhampton","701547","Apetito Limited","9002279322","1,403.25","Provisions (Resale)","130210867","11/04/2018","Catering","Meals on Wheels","R4102"
"Wolverhampton City Council","http://opendatacommunities.org/id/metropolitan-district-council/wolverhampton","701547","Apetito Limited","9002272845","1,443.41","Provisions (Resale)","130209706","04/04/2018","Catering","Meals on Wheels","R4102"
"Wolverhampton City Council","http://opendatacommunities.org/id/metropolitan-district-council/wolverhampton","701547","Apetito Limited","9002292273","1,196.74","Provisions (Resale)","130211953","25/04/2018","Catering","Meals on Wheels","R4102"
"Wolverhampton City Council","http://opendatacommunities.org/id/metropolitan-district-council/wolverhampton","701547","Apetito Limited","9002285751","1,166.48","Provisions (Resale)","130211511","18/04/2018","Catering","Meals on Wheels","R4102"
"Wolverhampton City Council","http://opendatacommunities.org/id/metropolitan-district-council/wolverhampton","701547","Apetito Limited","9002287206","1,099.20","Provisions (Resale)","130211952","25/04/2018","Catering","Meals on Wheels","R4102"
"Wolverhampton City Council","http://opendatacommunities.org/id/metropolitan-district-council/wolverhampton","701547","Apetito Limited","9002281767","61.12","Provisions (Resale)","130211107","18/04/2018","Catering","Meals on Wheels","R4102"
"Wolverhampton City Council","http://opendatacommunities.org/id/metropolitan-district-council/wolverhampton","701547","Apetito Limited","9002268755","1,059.31","Provisions (Resale)","130209118","04/04/2018","Catering","Meals on Wheels","R4102"
"Wolverhampton City Council","http://opendatacommunities.org/id/metropolitan-district-council/wolverhampton","701547","Apetito Limited","9002275357","1,057.45","Provisions (Resale)","130210158","11/04/2018","Catering","Meals on Wheels","R4102"
"Wolverhampton City Council","http://opendatacommunities.org/id/metropolitan-district-council/wolverhampton","701556","Apollo Distribution Solutions","56544","170.85","Services - Professional Fees","130214241","27/04/2018","Democratic Services","Coroners Service","R4400"
"Wolverhampton City Council","http://opendatacommunities.org/id/metropolitan-district-council/wolverhampton","701556","Apollo Distribution Solutions","56403","170.85","Services - Professional Fees","130212212","11/04/2018","Democratic Services","Coroners Service","R4400"
"Wolverhampton City Council","http://opendatacommunities.org/id/metropolitan-district-council/wolverhampton","701568","Aquaid (Birmingham Central)","198653","1,030.20","Stationery","130211477","04/04/2018","Schools","Dovecotes Primary School","R4308"
"Wolverhampton City Council","http://opendatacommunities.org/id/metropolitan-district-council/wolverhampton","701594","Argos Business Solutions Limited","01635989","167.45","Equipment - Purchase","130209707","13/04/2018","Early Intervention","EIP Locality 1 - Eastfields","R4000"
"Wolverhampton City Council","http://opendatacommunities.org/id/metropolitan-district-council/wolverhampton","701594","Argos Business Solutions Limited","01633779","21.06","Grant Payments","130208776","06/04/2018","Early Intervention","EIP Locality 4 - Bingley","R4700"
"Wolverhampton City Council","http://opendatacommunities.org/id/metropolitan-district-council/wolverhampton","701594","Argos Business Solutions Limited","01631263","89.14","Equipment - Purchase","130207937","04/04/2018","Early Intervention","EIP Locality 1 - Eastfields","R4000"
"Wolverhampton City Council","http://opendatacommunities.org/id/metropolitan-district-council/wolverhampton","701594","Argos Business Solutions Limited","01631263","-2.67","Equipment - Purchase","130207937","04/04/2018","Early Intervention","EIP Locality 1 - Eastfields","R4000"
"Wolverhampton City Council","http://opendatacommunities.org/id/metropolitan-district-council/wolverhampton","701594","Argos Business Solutions Limited","01637934","183.22","Equipment - Purchase","130210868","20/04/2018","Early Intervention","EIP Locality 1 - Eastfields","R4000"
"Wolverhampton City Council","http://opendatacommunities.org/id/metropolitan-district-council/wolverhampton","701594","Argos Business Solutions Limited","01629004","123.91","Grant Payments","130207178","13/04/2018","Early Intervention","EIP Locality 4 - Bingley","R4700"
"Wolverhampton City Council","http://opendatacommunities.org/id/metropolitan-district-council/wolverhampton","701594","Argos Business Solutions Limited","01629004","-123.91","Grant Payments","130207178","13/04/2018","Early Intervention","EIP Locality 4 - Bingley","R4700"
"Wolverhampton City Council","http://opendatacommunities.org/id/metropolitan-district-council/wolverhampton","701594","Argos Business Solutions Limited","01629004","103.47","Grant Payments","130207178","13/04/2018","Early Intervention","EIP Locality 4 - Bingley","R4700"
"Wolverhampton City Council","http://opendatacommunities.org/id/metropolitan-district-council/wolverhampton","701595","Argus Fire Protection Co.Limited","40430","585.00","R&M - Departmental planned (internal)","130213502","20/04/2018","Facilities Management","Caretakers Community Centre","R2000"
"Wolverhampton City Council","http://opendatacommunities.org/id/metropolitan-district-council/wolverhampton","701603","Arnold Clark Finance Limited","HI2329197","18.12","Hire of Vehicles","190448347","18/04/2018","Fleet Services","Fleet Management","R3200"
"Wolverhampton City Council","http://opendatacommunities.org/id/metropolitan-district-council/wolverhampton","701603","Arnold Clark Finance Limited","HI2327821","41.88","Hire of Vehicles","190448345","18/04/2018","Fleet Services","Fleet Management","R3200"
"Wolverhampton City Council","http://opendatacommunities.org/id/metropolitan-district-council/wolverhampton","701603","Arnold Clark Finance Limited","HI2319015","36.24","Hire of Vehicles","190443975","04/04/2018","Fleet Services","Fleet Management","R3200"
"Wolverhampton City Council","http://opendatacommunities.org/id/metropolitan-district-council/wolverhampton","701603","Arnold Clark Finance Limited","HI2319479","68.25","Hire of Vehicles","190443977","04/04/2018","Fleet Services","Fleet Management","R3200"
"Wolverhampton City Council","http://opendatacommunities.org/id/metropolitan-district-council/wolverhampton","701603","Arnold Clark Finance Limited","HI2323488","68.25","Hire of Vehicles","190443983","04/04/2018","Fleet Services","Fleet Management","R3200"
"Wolverhampton City Council","http://opendatacommunities.org/id/metropolitan-district-council/wolverhampton","701603","Arnold Clark Finance Limited","HI2323484","151.25","Hire of Vehicles","190443980","04/04/2018","Fleet Services","Fleet Management","R3200"
"Wolverhampton City Council","http://opendatacommunities.org/id/metropolitan-district-council/wolverhampton","701603","Arnold Clark Finance Limited","HI2327070","151.25","Hire of Vehicles","190448342","18/04/2018","Fleet Services","Fleet Management","R3200"
"Wolverhampton City Council","http://opendatacommunities.org/id/metropolitan-district-council/wolverhampton","701603","Arnold Clark Finance Limited","HI2332081","18.12","Hire of Vehicles","190448350","18/04/2018","Fleet Services","Fleet Management","R3200"
"Wolverhampton City Council","http://opendatacommunities.org/id/metropolitan-district-council/wolverhampton","701603","Arnold Clark Finance Limited","HI2319016","46.50","Hire of Vehicles","190443976","04/04/2018","Fleet Services","Fleet Management","R3200"
"Wolverhampton City Council","http://opendatacommunities.org/id/metropolitan-district-council/wolverhampton","701603","Arnold Clark Finance Limited","HI2323490","14.55","Hire of Vehicles","190443984","04/04/2018","Fleet Services","Fleet Management","R3200"
"Wolverhampton City Council","http://opendatacommunities.org/id/metropolitan-district-council/wolverhampton","701603","Arnold Clark Finance Limited","HI2319481","68.25","Hire of Vehicles","190443979","04/04/2018","Fleet Services","Fleet Management","R3200"
"Wolverhampton City Council","http://opendatacommunities.org/id/metropolitan-district-council/wolverhampton","701603","Arnold Clark Finance Limited","HI2326441","68.25","Hire of Vehicles","190443987","04/04/2018","Fleet Services","Fleet Management","R3200"
"Wolverhampton City Council","http://opendatacommunities.org/id/metropolitan-district-council/wolverhampton","701603","Arnold Clark Finance Limited","HI2327073","151.25","Hire of Vehicles","190448343","18/04/2018","Fleet Services","Fleet Management","R3200"
"Wolverhampton City Council","http://opendatacommunities.org/id/metropolitan-district-council/wolverhampton","701603","Arnold Clark Finance Limited","HI2329196","83.76","Hire of Vehicles","190448346","18/04/2018","Fleet Services","Fleet Management","R3200"
"Wolverhampton City Council","http://opendatacommunities.org/id/metropolitan-district-council/wolverhampton","701603","Arnold Clark Finance Limited","HI2331109","29.10","Hire of Vehicles","190448349","18/04/2018","Fleet Services","Fleet Management","R3200"
"Wolverhampton City Council","http://opendatacommunities.org/id/metropolitan-district-council/wolverhampton","701603","Arnold Clark Finance Limited","HI2323485","68.25","Hire of Vehicles","190443981","04/04/2018","Fleet Services","Fleet Management","R3200"
"Wolverhampton City Council","http://opendatacommunities.org/id/metropolitan-district-council/wolverhampton","701603","Arnold Clark Finance Limited","HI2326445","68.25","Hire of Vehicles","190443988","04/04/2018","Fleet Services","Fleet Management","R3200"
"Wolverhampton City Council","http://opendatacommunities.org/id/metropolitan-district-council/wolverhampton","701603","Arnold Clark Finance Limited","HI2324893","46.50","Hire of Vehicles","190443986","04/04/2018","Fleet Services","Fleet Management","R3200"
"Wolverhampton City Council","http://opendatacommunities.org/id/metropolitan-district-council/wolverhampton","701603","Arnold Clark Finance Limited","HI2324219","14.55","Hire of Vehicles","190443985","04/04/2018","Fleet Services","Fleet Management","R3200"
"Wolverhampton City Council","http://opendatacommunities.org/id/metropolitan-district-council/wolverhampton","701603","Arnold Clark Finance Limited","HI2327076","18.12","Hire of Vehicles","190448344","18/04/2018","Fleet Services","Fleet Management","R3200"
"Wolverhampton City Council","http://opendatacommunities.org/id/metropolitan-district-council/wolverhampton","701603","Arnold Clark Finance Limited","HI2331107","83.76","Hire of Vehicles","190448348","18/04/2018","Fleet Services","Fleet Management","R3200"
"Wolverhampton City Council","http://opendatacommunities.org/id/metropolitan-district-council/wolverhampton","701603","Arnold Clark Finance Limited","HI2319480","60.90","Hire of Vehicles","190443978","04/04/2018","Fleet Services","Fleet Management","R3200"
"Wolverhampton City Council","http://opendatacommunities.org/id/metropolitan-district-council/wolverhampton","701603","Arnold Clark Finance Limited","HI2319014","36.24","Hire of Vehicles","190443974","04/04/2018","Fleet Services","Fleet Management","R3200"
"Wolverhampton City Council","http://opendatacommunities.org/id/metropolitan-district-council/wolverhampton","701603","Arnold Clark Finance Limited","HI2323486","68.25","Hire of Vehicles","190443982","04/04/2018","Fleet Services","Fleet Management","R3200"
"Wolverhampton City Council","http://opendatacommunities.org/id/metropolitan-district-council/wolverhampton","701603","Arnold Clark Finance Limited","HI2326447","15.15","Hire of Vehicles","190443989","04/04/2018","Fleet Services","Fleet Management","R3200"
"Wolverhampton City Council","http://opendatacommunities.org/id/metropolitan-district-council/wolverhampton","701613","Arthur Brett (Catering) Limited","ID1014026","105.25","Provisions (Resale)","130210639","04/04/2018","Visitor Economy","Art Gallery Tea Room","R4102"
"Wolverhampton City Council","http://opendatacommunities.org/id/metropolitan-district-council/wolverhampton","701613","Arthur Brett (Catering) Limited","ID1015799","159.72","Provisions (Resale)","130211513","04/04/2018","Visitor Economy","Bantock - Tea Rooms","R4102"
"Wolverhampton City Council","http://opendatacommunities.org/id/metropolitan-district-council/wolverhampton","701613","Arthur Brett (Catering) Limited","ID1010301","42.33","Provisions (Resale)","130209371","04/04/2018","Older People Provider Services","Bradley Lodge Resource Centre","R4102"
"Wolverhampton City Council","http://opendatacommunities.org/id/metropolitan-district-council/wolverhampton","701613","Arthur Brett (Catering) Limited","ID1016150","139.50","Provisions (Resale)","130211747","11/04/2018","Visitor Economy","Bantock - Tea Rooms","R4102"
"Wolverhampton City Council","http://opendatacommunities.org/id/metropolitan-district-council/wolverhampton","701613","Arthur Brett (Catering) Limited","ID1016546","128.36","Provisions (Resale)","130212441","18/04/2018","Visitor Economy","Bantock - Tea Rooms","R4102"
"Wolverhampton City Council","http://opendatacommunities.org/id/metropolitan-district-council/wolverhampton","701613","Arthur Brett (Catering) Limited","3103182","112.80","Provisions (Resale)","130213504","20/04/2018","Leisure Services","WV Active Catering","R4102"
"Wolverhampton City Council","http://opendatacommunities.org/id/metropolitan-district-council/wolverhampton","701613","Arthur Brett (Catering) Limited","3103182","2.49","Provisions (Resale)","130213504","20/04/2018","Leisure Services","WV Active Catering","R4102"
"Wolverhampton City Council","http://opendatacommunities.org/id/metropolitan-district-council/wolverhampton","701613","Arthur Brett (Catering) Limited","ID1016769","166.38","Provisions (Resale)","130212622","20/04/2018","Visitor Economy","Art Gallery Tea Room","R4102"
"Wolverhampton City Council","http://opendatacommunities.org/id/metropolitan-district-council/wolverhampton","701613","Arthur Brett (Catering) Limited","ID1015861","111.98","Provisions (Resale)","130211743","06/04/2018","Visitor Economy","Art Gallery Tea Room","R4102"
"Wolverhampton City Council","http://opendatacommunities.org/id/metropolitan-district-council/wolverhampton","701613","Arthur Brett (Catering) Limited","ID1014552","2.37","Provisions (Resale)","130210871","13/04/2018","Older People Provider Services","Bradley Lodge Resource Centre","R4102"
"Wolverhampton City Council","http://opendatacommunities.org/id/metropolitan-district-council/wolverhampton","701613","Arthur Brett (Catering) Limited","ID1017717","51.45","Provisions (Resale)","130213684","25/04/2018","Older People Provider Services","Bradley Lodge Resource Centre","R4102"
"Wolverhampton City Council","http://opendatacommunities.org/id/metropolitan-district-council/wolverhampton","701613","Arthur Brett (Catering) Limited","ID1018705","13.80","Provisions (Resale)","130213686","25/04/2018","Older People Provider Services","Bradley Lodge Resource Centre","R4102"
"Wolverhampton City Council","http://opendatacommunities.org/id/metropolitan-district-council/wolverhampton","701613","Arthur Brett (Catering) Limited","ID1016145","33.60","Provisions (Resale)","130212729","18/04/2018","Older People Provider Services","Bradley Lodge Resource Centre","R4102"
"Wolverhampton City Council","http://opendatacommunities.org/id/metropolitan-district-council/wolverhampton","701613","Arthur Brett (Catering) Limited","ID1019282","20.10","Provisions (Resale)","130213937","27/04/2018","Adult Education","Caf�","R4102"
"Wolverhampton City Council","http://opendatacommunities.org/id/metropolitan-district-council/wolverhampton","701613","Arthur Brett (Catering) Limited","ID1014828","17.35","Provisions (Resale)","130210873","04/04/2018","Adult Education","Caf�","R4102"
"Wolverhampton City Council","http://opendatacommunities.org/id/metropolitan-district-council/wolverhampton","701613","Arthur Brett (Catering) Limited","ID1013511","45.08","Provisions (Resale)","130210155","04/04/2018","Older People Provider Services","Bradley Lodge Resource Centre","R4102"
"Wolverhampton City Council","http://opendatacommunities.org/id/metropolitan-district-council/wolverhampton","701613","Arthur Brett (Catering) Limited","ID1017721","8.90","Provisions (Resale)","130213300","18/04/2018","Visitor Economy","Bantock - Tea Rooms","R4102"
"Wolverhampton City Council","http://opendatacommunities.org/id/metropolitan-district-council/wolverhampton","701613","Arthur Brett (Catering) Limited","ID1014069","32.01","Provisions (Resale)","130210640","04/04/2018","Visitor Economy","Bantock - Tea Rooms","R4102"
"Wolverhampton City Council","http://opendatacommunities.org/id/metropolitan-district-council/wolverhampton","701613","Arthur Brett (Catering) Limited","ID1013516","45.65","Provisions (Resale)","130210869","11/04/2018","Older People Provider Services","Bradley Lodge Resource Centre","R4102"
"Wolverhampton City Council","http://opendatacommunities.org/id/metropolitan-district-council/wolverhampton","701613","Arthur Brett (Catering) Limited","ID1015961","25.27","Provisions (Resale)","130211745","06/04/2018","Visitor Economy","Bantock - Tea Rooms","R4102"
"Wolverhampton City Council","http://opendatacommunities.org/id/metropolitan-district-council/wolverhampton","701613","Arthur Brett (Catering) Limited","ID1017727","111.85","Provisions (Resale)","130212907","20/04/2018","Visitor Economy","Art Gallery Tea Room","R4102"
"Wolverhampton City Council","http://opendatacommunities.org/id/metropolitan-district-council/wolverhampton","701613","Arthur Brett (Catering) Limited","ID1016429","42.39","Provisions (Resale)","130212906","20/04/2018","Visitor Economy","Art Gallery Tea Room","R4102"
"Wolverhampton City Council","http://opendatacommunities.org/id/metropolitan-district-council/wolverhampton","701613","Arthur Brett (Catering) Limited","ID1016427","167.02","Provisions (Resale)","130213298","20/04/2018","Visitor Economy","Bantock - Tea Rooms","R4102"
"Wolverhampton City Council","http://opendatacommunities.org/id/metropolitan-district-council/wolverhampton","701613","Arthur Brett (Catering) Limited","ID1018696","33.07","Provisions (Resale)","130213685","25/04/2018","Visitor Economy","Art Gallery Tea Room","R4102"
"Wolverhampton City Council","http://opendatacommunities.org/id/metropolitan-district-council/wolverhampton","701613","Arthur Brett (Catering) Limited","ID1017772","22.24","Provisions (Resale)","130213302","25/04/2018","Older People Provider Services","Blakenhall Resource Centre","R4102"
"Wolverhampton City Council","http://opendatacommunities.org/id/metropolitan-district-council/wolverhampton","701613","Arthur Brett (Catering) Limited","ID1016841","29.48","Provisions (Resale)","130212730","25/04/2018","Older People Provider Services","Bradley Lodge Resource Centre","R4102"
"Wolverhampton City Council","http://opendatacommunities.org/id/metropolitan-district-council/wolverhampton","701613","Arthur Brett (Catering) Limited","ID1014356","25.38","Provisions (Resale)","130210641","04/04/2018","Visitor Economy","Art Gallery Tea Room","R4102"
"Wolverhampton City Council","http://opendatacommunities.org/id/metropolitan-district-council/wolverhampton","701613","Arthur Brett (Catering) Limited","ID1014519","143.80","Provisions (Resale)","130210870","04/04/2018","Visitor Economy","Bantock - Tea Rooms","R4102"
"Wolverhampton City Council","http://opendatacommunities.org/id/metropolitan-district-council/wolverhampton","701613","Arthur Brett (Catering) Limited","ID1016173","85.46","Provisions (Resale)","130211748","11/04/2018","Visitor Economy","Art Gallery Tea Room","R4102"
"Wolverhampton City Council","http://opendatacommunities.org/id/metropolitan-district-council/wolverhampton","701613","Arthur Brett (Catering) Limited","ID1016143","59.80","Provisions (Resale)","130211746","11/04/2018","Older People Provider Services","Bradley Lodge Resource Centre","R4102"
"Wolverhampton City Council","http://opendatacommunities.org/id/metropolitan-district-council/wolverhampton","701613","Arthur Brett (Catering) Limited","ID1017570","160.04","Provisions (Resale)","130212731","18/04/2018","Visitor Economy","Bantock - Tea Rooms","R4102"
"Wolverhampton City Council","http://opendatacommunities.org/id/metropolitan-district-council/wolverhampton","701613","Arthur Brett (Catering) Limited","ID1014607","47.09","Provisions (Resale)","130211512","13/04/2018","Older People Provider Services","Bradley Lodge Resource Centre","R4102"
"Wolverhampton City Council","http://opendatacommunities.org/id/metropolitan-district-council/wolverhampton","701613","Arthur Brett (Catering) Limited","ID1017572","53.09","Provisions (Resale)","130212732","20/04/2018","Visitor Economy","Art Gallery Tea Room","R4102"
"Wolverhampton City Council","http://opendatacommunities.org/id/metropolitan-district-council/wolverhampton","701613","Arthur Brett (Catering) Limited","3103181","252.60","Provisions (Resale)","130213503","20/04/2018","Leisure Services","Bert Williams Leisure Centre Caf�","R4102"
"Wolverhampton City Council","http://opendatacommunities.org/id/metropolitan-district-council/wolverhampton","701613","Arthur Brett (Catering) Limited","ID1018711","169.70","Provisions (Resale)","130213687","25/04/2018","Visitor Economy","Bantock - Tea Rooms","R4102"
"Wolverhampton City Council","http://opendatacommunities.org/id/metropolitan-district-council/wolverhampton","701613","Arthur Brett (Catering) Limited","ID1016178","21.20","Provisions (Resale)","130211956","18/04/2018","Visitor Economy","Art Gallery Tea Room","R4102"
"Wolverhampton City Council","http://opendatacommunities.org/id/metropolitan-district-council/wolverhampton","701613","Arthur Brett (Catering) Limited","ID1015419","93.38","Provisions (Resale)","130211108","04/04/2018","Visitor Economy","Art Gallery Tea Room","R4102"
"Wolverhampton City Council","http://opendatacommunities.org/id/metropolitan-district-council/wolverhampton","701613","Arthur Brett (Catering) Limited","ID1008936","36.66","Provisions (Resale)","130208778","04/04/2018","Older People Provider Services","Bradley Lodge Resource Centre","R4102"
"Wolverhampton City Council","http://opendatacommunities.org/id/metropolitan-district-council/wolverhampton","701613","Arthur Brett (Catering) Limited","ID1014601","68.85","Provisions (Resale)","130210872","04/04/2018","Visitor Economy","Art Gallery Tea Room","R4102"
"Wolverhampton City Council","http://opendatacommunities.org/id/metropolitan-district-council/wolverhampton","701613","Arthur Brett (Catering) Limited","ID1015147","108.58","Provisions (Resale)","130212213","11/04/2018","Visitor Economy","Bantock - Tea Rooms","R4102"
"Wolverhampton City Council","http://opendatacommunities.org/id/metropolitan-district-council/wolverhampton","701613","Arthur Brett (Catering) Limited","ID1015930","25.85","Provisions (Resale)","130211744","11/04/2018","Older People Provider Services","Blakenhall Resource Centre","R4102"
"Wolverhampton City Council","http://opendatacommunities.org/id/metropolitan-district-council/wolverhampton","701613","Arthur Brett (Catering) Limited","ID1016321","109.30","Provisions (Resale)","130211957","18/04/2018","Visitor Economy","Art Gallery Tea Room","R4102"
"Wolverhampton City Council","http://opendatacommunities.org/id/metropolitan-district-council/wolverhampton","701613","Arthur Brett (Catering) Limited","ID1014535","40.58","Provisions (Resale)","130211954","13/04/2018","Older People Provider Services","Bradley Lodge Resource Centre","R4102"
"Wolverhampton City Council","http://opendatacommunities.org/id/metropolitan-district-council/wolverhampton","701613","Arthur Brett (Catering) Limited","ID1018107","131.18","Provisions (Resale)","130213303","25/04/2018","Visitor Economy","Art Gallery Tea Room","R4102"
"Wolverhampton City Council","http://opendatacommunities.org/id/metropolitan-district-council/wolverhampton","701613","Arthur Brett (Catering) Limited","ID1016014","63.12","Provisions (Resale)","130213297","25/04/2018","Adult Education","Caf�","R4102"
"Wolverhampton City Council","http://opendatacommunities.org/id/metropolitan-district-council/wolverhampton","701613","Arthur Brett (Catering) Limited","ID1017703","51.44","Provisions (Resale)","130213299","25/04/2018","Older People Provider Services","Bradley Lodge Resource Centre","R4102"
"Wolverhampton City Council","http://opendatacommunities.org/id/metropolitan-district-council/wolverhampton","701613","Arthur Brett (Catering) Limited","ID1017283","6.90","Provisions (Resale)","130213119","25/04/2018","Older People Provider Services","Bradley Lodge Resource Centre","R4102"
"Wolverhampton City Council","http://opendatacommunities.org/id/metropolitan-district-council/wolverhampton","701613","Arthur Brett (Catering) Limited","ID1015527","20.65","Provisions (Resale)","130211955","18/04/2018","Adult Education","Caf�","R4102"
"Wolverhampton City Council","http://opendatacommunities.org/id/metropolitan-district-council/wolverhampton","701613","Arthur Brett (Catering) Limited","ID1019016","63.00","Provisions (Resale)","130214092","27/04/2018","Visitor Economy","Bantock - Tea Rooms","R4102"
"Wolverhampton City Council","http://opendatacommunities.org/id/metropolitan-district-council/wolverhampton","701616","Arthur M Griffiths & Son Limited","43","4,442.00","Construction and Conversion","130211958","11/04/2018","-","Primary Expansion Programme","C1100"
"Wolverhampton City Council","http://opendatacommunities.org/id/metropolitan-district-council/wolverhampton","701626","Asan Management Services Limited","112200","107.20","Catering","130208988","18/04/2018","Safeguarding","Safeguarding Board - Childrens","R4100"
"Wolverhampton City Council","http://opendatacommunities.org/id/metropolitan-district-council/wolverhampton","701626","Asan Management Services Limited","112173","72.00","Room Hire","130206764","06/04/2018","Human Resources","Workforce Development","R2201"
"Wolverhampton City Council","http://opendatacommunities.org/id/metropolitan-district-council/wolverhampton","701626","Asan Management Services Limited","112173","70.00","Catering","130206764","06/04/2018","Human Resources","Workforce Development","R4100"
"Wolverhampton City Council","http://opendatacommunities.org/id/metropolitan-district-council/wolverhampton","701636","Asdan Limited","267072","8.50","Training Expenses","130212214","11/04/2018","Headstart","Headstart - Young People Engagement","R1650"
"Wolverhampton City Council","http://opendatacommunities.org/id/metropolitan-district-council/wolverhampton","701636","Asdan Limited","267072","2.10","Comms - Postage","130212214","11/04/2018","Headstart","Headstart - Young People Engagement","R4503"
"Wolverhampton City Council","http://opendatacommunities.org/id/metropolitan-district-council/wolverhampton","701636","Asdan Limited","267420","364.00","Training Expenses","130211109","04/04/2018","Headstart","Headstart - Young People Engagement","R1650"
"Wolverhampton City Council","http://opendatacommunities.org/id/metropolitan-district-council/wolverhampton","701639","Ash Rubber Stamp Co.Limited.","401083470","27.93","Stationery","130211217","13/04/2018","Looked After Children","Head of Service - LAC","R4308"
"Wolverhampton City Council","http://opendatacommunities.org/id/metropolitan-district-council/wolverhampton","701639","Ash Rubber Stamp Co.Limited.","401103908","74.60","Stationery","130213807","25/04/2018","Strategic Organisation Development","Global Budgets","R4308"
"Wolverhampton City Council","http://opendatacommunities.org/id/metropolitan-district-council/wolverhampton","701639","Ash Rubber Stamp Co.Limited.","401120721","17.79","Stationery","130212215","13/04/2018","Strategic Organisation Development","Global Budgets","R4308"
"Wolverhampton City Council","http://opendatacommunities.org/id/metropolitan-district-council/wolverhampton","701639","Ash Rubber Stamp Co.Limited.","401120721","21.90","Stationery","130212215","13/04/2018","Strategic Organisation Development","Global Budgets","R4308"
"Wolverhampton City Council","http://opendatacommunities.org/id/metropolitan-district-council/wolverhampton","701639","Ash Rubber Stamp Co.Limited.","401120721","65.64","Stationery","130212215","13/04/2018","Strategic Organisation Development","Global Budgets","R4308"
"Wolverhampton City Council","http://opendatacommunities.org/id/metropolitan-district-council/wolverhampton","701639","Ash Rubber Stamp Co.Limited.","401113612","90.78","Stationery","130213808","25/04/2018","Strategic Organisation Development","Global Budgets","R4308"
"Wolverhampton City Council","http://opendatacommunities.org/id/metropolitan-district-council/wolverhampton","701639","Ash Rubber Stamp Co.Limited.","401113612","7.94","Stationery","130213808","25/04/2018","Strategic Organisation Development","Global Budgets","R4308"
"Wolverhampton City Council","http://opendatacommunities.org/id/metropolitan-district-council/wolverhampton","701639","Ash Rubber Stamp Co.Limited.","401113612","15.88","Stationery","130213808","25/04/2018","Strategic Organisation Development","Global Budgets","R4308"
"Wolverhampton City Council","http://opendatacommunities.org/id/metropolitan-district-council/wolverhampton","701639","Ash Rubber Stamp Co.Limited.","401113612","12.99","Stationery","130213808","25/04/2018","Strategic Organisation Development","Global Budgets","R4308"
"Wolverhampton City Council","http://opendatacommunities.org/id/metropolitan-district-council/wolverhampton","701643","Ashdown Supplies","15261","348.00","Materials","130212442","13/04/2018","Bereavement Services","Crematorium","R4007"
"Wolverhampton City Council","http://opendatacommunities.org/id/metropolitan-district-council/wolverhampton","701643","Ashdown Supplies","15103","338.40","Materials","130211514","06/04/2018","Bereavement Services","Cemeteries","R4007"
"Wolverhampton City Council","http://opendatacommunities.org/id/metropolitan-district-council/wolverhampton","701656","Askews & Holts Library Services Limited","5670320","334.73","Books","130211030","13/04/2018","Strategic Organisation Development","Global Budgets","R4309"
"Wolverhampton City Council","http://opendatacommunities.org/id/metropolitan-district-council/wolverhampton","701656","Askews & Holts Library Services Limited","5674795","71.74","Books","130211033","18/04/2018","Strategic Organisation Development","Global Budgets","R4309"
"Wolverhampton City Council","http://opendatacommunities.org/id/metropolitan-district-council/wolverhampton","701656","Askews & Holts Library Services Limited","5674893","248.74","Books","130211036","18/04/2018","Strategic Organisation Development","Global Budgets","R4309"
"Wolverhampton City Council","http://opendatacommunities.org/id/metropolitan-district-council/wolverhampton","701656","Askews & Holts Library Services Limited","5662817","294.18","Books","130208126","04/04/2018","Strategic Organisation Development","Global Budgets","R4309"
"Wolverhampton City Council","http://opendatacommunities.org/id/metropolitan-district-council/wolverhampton","701656","Askews & Holts Library Services Limited","5662770","573.01","Books","130209376","04/04/2018","Strategic Organisation Development","Global Budgets","R4309"
"Wolverhampton City Council","http://opendatacommunities.org/id/metropolitan-district-council/wolverhampton","701656","Askews & Holts Library Services Limited","5670291","599.73","Books","130211028","13/04/2018","Strategic Organisation Development","Global Budgets","R4309"
"Wolverhampton City Council","http://opendatacommunities.org/id/metropolitan-district-council/wolverhampton","701656","Askews & Holts Library Services Limited","5678058","11.45","Books","130211218","20/04/2018","Strategic Organisation Development","Global Budgets","R4309"
"Wolverhampton City Council","http://opendatacommunities.org/id/metropolitan-district-council/wolverhampton","701656","Askews & Holts Library Services Limited","5682525","230.56","Books","130212909","27/04/2018","Strategic Organisation Development","Global Budgets","R4309"
"Wolverhampton City Council","http://opendatacommunities.org/id/metropolitan-district-council/wolverhampton","701656","Askews & Holts Library Services Limited","5683928","22.25","Books","130211221","18/04/2018","Strategic Organisation Development","Global Budgets","R4309"
"Wolverhampton City Council","http://opendatacommunities.org/id/metropolitan-district-council/wolverhampton","701656","Askews & Holts Library Services Limited","5668424","7.25","Books","130208472","04/04/2018","Strategic Organisation Development","Global Budgets","R4309"
"Wolverhampton City Council","http://opendatacommunities.org/id/metropolitan-district-council/wolverhampton","701656","Askews & Holts Library Services Limited","5662769","561.39","Books","130208990","04/04/2018","Strategic Organisation Development","Global Budgets","R4309"
"Wolverhampton City Council","http://opendatacommunities.org/id/metropolitan-district-council/wolverhampton","701656","Askews & Holts Library Services Limited","5674766","88.81","Books","130211031","18/04/2018","Strategic Organisation Development","Global Budgets","R4309"
"Wolverhampton City Council","http://opendatacommunities.org/id/metropolitan-district-council/wolverhampton","701656","Askews & Holts Library Services Limited","5670319","17.84","Books","130211029","13/04/2018","Strategic Organisation Development","Global Budgets","R4309"
"Wolverhampton City Council","http://opendatacommunities.org/id/metropolitan-district-council/wolverhampton","701656","Askews & Holts Library Services Limited","5678060","290.83","Books","130211220","20/04/2018","Strategic Organisation Development","Global Budgets","R4309"
"Wolverhampton City Council","http://opendatacommunities.org/id/metropolitan-district-council/wolverhampton","701656","Askews & Holts Library Services Limited","5689865","11.45","Books","130211749","27/04/2018","Strategic Organisation Development","Global Budgets","R4309"
"Wolverhampton City Council","http://opendatacommunities.org/id/metropolitan-district-council/wolverhampton","701656","Askews & Holts Library Services Limited","5658651","501.38","Books","130208471","04/04/2018","Strategic Organisation Development","Global Budgets","R4309"
"Wolverhampton City Council","http://opendatacommunities.org/id/metropolitan-district-council/wolverhampton","701656","Askews & Holts Library Services Limited","5674767","362.14","Books","130211032","18/04/2018","Strategic Organisation Development","Global Budgets","R4309"
"Wolverhampton City Council","http://opendatacommunities.org/id/metropolitan-district-council/wolverhampton","701656","Askews & Holts Library Services Limited","5674894","187.46","Books","130211037","18/04/2018","Strategic Organisation Development","Global Budgets","R4309"
"Wolverhampton City Council","http://opendatacommunities.org/id/metropolitan-district-council/wolverhampton","701656","Askews & Holts Library Services Limited","5677823","4.60","Books","130210448","13/04/2018","Strategic Organisation Development","Global Budgets","R4309"
"Wolverhampton City Council","http://opendatacommunities.org/id/metropolitan-district-council/wolverhampton","701656","Askews & Holts Library Services Limited","5678059","568.34","Books","130211219","20/04/2018","Strategic Organisation Development","Global Budgets","R4309"
"Wolverhampton City Council","http://opendatacommunities.org/id/metropolitan-district-council/wolverhampton","701656","Askews & Holts Library Services Limited","158601E","-11.56","Books","130203484","27/04/2018","Strategic Organisation Development","Global Budgets","R4309"
"Wolverhampton City Council","http://opendatacommunities.org/id/metropolitan-district-council/wolverhampton","701656","Askews & Holts Library Services Limited","5674892","22.56","Books","130211035","18/04/2018","Strategic Organisation Development","Global Budgets","R4309"
"Wolverhampton City Council","http://opendatacommunities.org/id/metropolitan-district-council/wolverhampton","701656","Askews & Holts Library Services Limited","5674796","222.27","Books","130211034","18/04/2018","Strategic Organisation Development","Global Budgets","R4309"
"Wolverhampton City Council","http://opendatacommunities.org/id/metropolitan-district-council/wolverhampton","701656","Askews & Holts Library Services Limited","5662771","222.86","Books","130208991","04/04/2018","Strategic Organisation Development","Global Budgets","R4309"
"Wolverhampton City Council","http://opendatacommunities.org/id/metropolitan-district-council/wolverhampton","701656","Askews & Holts Library Services Limited","5662768","27.39","Books","130208989","04/04/2018","Strategic Organisation Development","Global Budgets","R4309"
"Wolverhampton City Council","http://opendatacommunities.org/id/metropolitan-district-council/wolverhampton","701680","Associated  Radio Taxi�s","ART-17-009760","1,092.40","Client Transport","130214245","27/04/2018","School Planning & Resources","Primary - Transport","R3042"
"Wolverhampton City Council","http://opendatacommunities.org/id/metropolitan-district-council/wolverhampton","701712","Pelican Rouge Coffee Solutions Limited","180072245","30.33","Equipment - R & M","130209711","04/04/2018","Catering","Civic Centre Catering","R4003"
"Wolverhampton City Council","http://opendatacommunities.org/id/metropolitan-district-council/wolverhampton","701739","Axiom Building Solutions","05522","545.00","R&M - Departmental planned (external)","130210642","18/04/2018","Corporate Asset Management","Statutory Surveys","R2001"
"Wolverhampton City Council","http://opendatacommunities.org/id/metropolitan-district-council/wolverhampton","701784","Bains Supersave Limited","APNEWS048","53.25","Books","130213304","18/04/2018","Strategic Organisation Development","Global Budgets","R4309"
"Wolverhampton City Council","http://opendatacommunities.org/id/metropolitan-district-council/wolverhampton","701786","Baker Flooring Limited","IN684","1,436.73","Equipment - Purchase","130214246","27/04/2018","Cleaning","Cleaning of Buildings - General","R4000"
"Wolverhampton City Council","http://opendatacommunities.org/id/metropolitan-district-council/wolverhampton","701787","Baker Hall Limited","WV/03/18","437.50","Services - Consultants","130212216","25/04/2018","Planning","Building Consultancy","R4404"
"Wolverhampton City Council","http://opendatacommunities.org/id/metropolitan-district-council/wolverhampton","701817","Base 25","3400","600.00","Services - Supplies and Services to service users","130209513","11/04/2018","Early Intervention","EIP Locality 3 - Graiseley","R4408"
"Wolverhampton City Council","http://opendatacommunities.org/id/metropolitan-district-council/wolverhampton","701817","Base 25","3434","13,335.00","TPP - Public Health Contracts","130210875","18/04/2018","Contracts","Public Mental Health","R5060"
"Wolverhampton City Council","http://opendatacommunities.org/id/metropolitan-district-council/wolverhampton","701817","Base 25","3411","300.00","Services - Professional Fees","130209514","11/04/2018","Early Intervention","EIP Locality 2 � Bilston/Rocket Pool","R4400"
"Wolverhampton City Council","http://opendatacommunities.org/id/metropolitan-district-council/wolverhampton","701817","Base 25","3435","13,335.00","TPP - Public Health Contracts","130210449","18/04/2018","Contracts","Public Mental Health","R5060"
"Wolverhampton City Council","http://opendatacommunities.org/id/metropolitan-district-council/wolverhampton","701817","Base 25","3399","300.00","Services - Supplies and Services to service users","130209512","11/04/2018","Early Intervention","EIP Locality 3 - Graiseley","R4408"
"Wolverhampton City Council","http://opendatacommunities.org/id/metropolitan-district-council/wolverhampton","701817","Base 25","3262","225.00","Grant Payments","130210643","20/04/2018","Early Intervention","EIP Locality 6 � Dovecotes","R4700"
"Wolverhampton City Council","http://opendatacommunities.org/id/metropolitan-district-council/wolverhampton","701817","Base 25","3438","360.00","Section 17","130210877","18/04/2018","Child Protection","CIN/CP Social Work Unit - Area 8","R6403"
"Wolverhampton City Council","http://opendatacommunities.org/id/metropolitan-district-council/wolverhampton","701817","Base 25","3425","2,500.00","Training Expenses","130209515","11/04/2018","Skills","IMPACT","R1650"
"Wolverhampton City Council","http://opendatacommunities.org/id/metropolitan-district-council/wolverhampton","701832","Bbp.Security Services & Training Limited","142WCC190318","5,126.13","Services - Security","130212173","11/04/2018","Democratic Services","Civic Events","R4405"
"Wolverhampton City Council","http://opendatacommunities.org/id/metropolitan-district-council/wolverhampton","701832","Bbp.Security Services & Training Limited","002AEW280318","4,053.00","Services - Security","130211516","04/04/2018","Adult Education","Service Wide","R4405"
"Wolverhampton City Council","http://opendatacommunities.org/id/metropolitan-district-council/wolverhampton","701832","Bbp.Security Services & Training Limited","237WCC280318","436.00","Services - Security","130211525","04/04/2018","Maintenance Programme","Asset Management Team","R4405"
"Wolverhampton City Council","http://opendatacommunities.org/id/metropolitan-district-council/wolverhampton","701832","Bbp.Security Services & Training Limited","241WCC100418","6,558.00","Services - Security","130213306","20/04/2018","Facilities Management","Caretakers Supply Pool","R4405"
"Wolverhampton City Council","http://opendatacommunities.org/id/metropolitan-district-council/wolverhampton","701832","Bbp.Security Services & Training Limited","236WCC280318","80.50","Services - Security","130211524","06/04/2018","Leisure Services","Aldersley Leisure Village","R4405"
"Wolverhampton City Council","http://opendatacommunities.org/id/metropolitan-district-council/wolverhampton","701832","Bbp.Security Services & Training Limited","1040CIV230318","2,019.59","Services - Security","130211517","11/04/2018","Visitor Economy","Civic & Wulfrun In-House Promotions","R4405"
"Wolverhampton City Council","http://opendatacommunities.org/id/metropolitan-district-council/wolverhampton","701832","Bbp.Security Services & Training Limited","001AEW050318","5,628.00","Services - Security","130211515","04/04/2018","Adult Education","Service Wide","R4405"
"Wolverhampton City Council","http://opendatacommunities.org/id/metropolitan-district-council/wolverhampton","701832","Bbp.Security Services & Training Limited","234WCC280318","880.00","Services - Security","130211522","04/04/2018","Learning Disability Provider","Support Plus","R4405"
"Wolverhampton City Council","http://opendatacommunities.org/id/metropolitan-district-council/wolverhampton","701832","Bbp.Security Services & Training Limited","234WCC280318","792.00","Services - Security","130211522","04/04/2018","Learning Disability Provider","Support Plus","R4405"
"Wolverhampton City Council","http://opendatacommunities.org/id/metropolitan-district-council/wolverhampton","701832","Bbp.Security Services & Training Limited","240WCC100418","2,450.00","Services - Security","130212733","18/04/2018","Facilities Management","Parkfields Office Accomodation","R4405"
"Wolverhampton City Council","http://opendatacommunities.org/id/metropolitan-district-council/wolverhampton","701832","Bbp.Security Services & Training Limited","244WCC100418","3,410.00","Services - Professional Fees","130213128","18/04/2018","City Development","Strategic Disposals","R4400"
"Wolverhampton City Council","http://opendatacommunities.org/id/metropolitan-district-council/wolverhampton","701832","Bbp.Security Services & Training Limited","235WCC280318","5,126.13","Services - Security","130211523","04/04/2018","Democratic Services","Civic Events","R4405"
"Wolverhampton City Council","http://opendatacommunities.org/id/metropolitan-district-council/wolverhampton","701832","Bbp.Security Services & Training Limited","239WCC040418","22.00","Services - Security","130211962","11/04/2018","Youth Offending","Youth Offending Team","R4405"
"Wolverhampton City Council","http://opendatacommunities.org/id/metropolitan-district-council/wolverhampton","701832","Bbp.Security Services & Training Limited","231WCC280318","711.63","Services - Security","130211519","04/04/2018","Markets","Bilston Market and Licensed Operations","R4405"
"Wolverhampton City Council","http://opendatacommunities.org/id/metropolitan-district-council/wolverhampton","701832","Bbp.Security Services & Training Limited","232WCC280318","500.00","Services - Security","130211520","06/04/2018","Markets","Bilston Market and Licensed Operations","R4405"
"Wolverhampton City Council","http://opendatacommunities.org/id/metropolitan-district-council/wolverhampton","701832","Bbp.Security Services & Training Limited","230WCC280318","4,500.00","Services - Security","130211518","04/04/2018","Facilities Management","Management of Vacant Properties","R4405"
"Wolverhampton City Council","http://opendatacommunities.org/id/metropolitan-district-council/wolverhampton","701832","Bbp.Security Services & Training Limited","233WCC280318","1,040.00","Services - Security","130211521","04/04/2018","Markets","Wolverhampton Indoor and Open Market","R4405"
"Wolverhampton City Council","http://opendatacommunities.org/id/metropolitan-district-council/wolverhampton","701832","Bbp.Security Services & Training Limited","238WCC280318","480.00","Services - Security","130211526","04/04/2018","Maintenance Programme","Asset Management Team","R4405"
"Wolverhampton City Council","http://opendatacommunities.org/id/metropolitan-district-council/wolverhampton","701832","Bbp.Security Services & Training Limited","243WCC100418","1,634.00","Services - Security","130212735","18/04/2018","Markets","Bilston Market and Licensed Operations","R4405"
"Wolverhampton City Council","http://opendatacommunities.org/id/metropolitan-district-council/wolverhampton","701832","Bbp.Security Services & Training Limited","206WCC150218","506.00","Services - Security","130211961","06/04/2018","Looked After Children","Head of Service - LAC","R4405"
"Wolverhampton City Council","http://opendatacommunities.org/id/metropolitan-district-council/wolverhampton","701832","Bbp.Security Services & Training Limited","242WCC100418","175.00","Services - Security","130212734","27/04/2018","Strategic Organisation Development","Global Budgets","R4405"
"Wolverhampton City Council","http://opendatacommunities.org/id/metropolitan-district-council/wolverhampton","701835","BCC Mac T/A St Michaels Catholic","Low Incidence High Cost Funding 2017-18","11,462.00","Grant Payments","190442345","04/04/2018","Schools","High Needs - High Incidence Schools","R4700"
"Wolverhampton City Council","http://opendatacommunities.org/id/metropolitan-district-council/wolverhampton","701884","Berrybrook Primary School Fund A/C","TFT Summer 2018 Inst 1","7,356.96","Grant Payments","190451861","27/04/2018","Early Years","Early Years Entitlement Funding for Disadvantaged 2 Year Olds","R4700"
"Wolverhampton City Council","http://opendatacommunities.org/id/metropolitan-district-council/wolverhampton","701885","Berrymans Lace Mawer","2363212","5,361.00","Insurance - General","130213940","25/04/2018","Audit Services","Legal Liability","R4962"
"Wolverhampton City Council","http://opendatacommunities.org/id/metropolitan-district-council/wolverhampton","701930","Bilston Resource Centre","UC003","2,771.28","Training Expenses","130206450","25/04/2018","Strategic Organisation Development","Universal Credit","R1650"
"Wolverhampton City Council","http://opendatacommunities.org/id/metropolitan-district-council/wolverhampton","701943","Birmingham Children�S Hospital NHSft","SB/SCR0130112","151.20","Services - Professional Fees","190452083","27/04/2018","Legal Services","Centralised External Legal Costs","R4400"
"Wolverhampton City Council","http://opendatacommunities.org/id/metropolitan-district-council/wolverhampton","701944","Birmingham CC - General Fund","9002274179","1,100.00","Training Expenses","130211110","04/04/2018","Looked After Children","Pupil Premium","R1650"
"Wolverhampton City Council","http://opendatacommunities.org/id/metropolitan-district-council/wolverhampton","701944","Birmingham CC - General Fund","9002433145","8,106.58","Comms - Postage","130209379","06/04/2018","ICTS","Document Centre - General","R4503"
"Wolverhampton City Council","http://opendatacommunities.org/id/metropolitan-district-council/wolverhampton","701963","Black Country Consortium Limited","1863","53.95","Grant Payments","130210644","04/04/2018","Enterprise","AIM for the Black Country non shared costs","R4700"
"Wolverhampton City Council","http://opendatacommunities.org/id/metropolitan-district-council/wolverhampton","701963","Black Country Consortium Limited","1865","11.79","Grant Payments","130210646","04/04/2018","Enterprise","AIM for the Black Country non shared costs","R4700"
"Wolverhampton City Council","http://opendatacommunities.org/id/metropolitan-district-council/wolverhampton","701968","Black Country Partnership NHS Ft","3200000098","-225,537.14","TPP - Social Care Support Services","130208759","25/04/2018","Service Director Children & Young People","Children & Young People Support Costs","R5501"
"Wolverhampton City Council","http://opendatacommunities.org/id/metropolitan-district-council/wolverhampton","701968","Black Country Partnership NHS Ft","3100000946","225,537.14","TPP - Social Care Support Services","130208758","25/04/2018","Service Director Children & Young People","Children & Young People Support Costs","R5501"
"Wolverhampton City Council","http://opendatacommunities.org/id/metropolitan-district-council/wolverhampton","701983","Blakenhall Neighbourhood Nursery","NEF Summer 2018 INST 1","26,622.00","TPP - Private Nursery Education Funding","190451850","27/04/2018","Early Years","Early Years Universal Entitlement for 3 and 4 Year Olds","R5035"
"Wolverhampton City Council","http://opendatacommunities.org/id/metropolitan-district-council/wolverhampton","701983","Blakenhall Neighbourhood Nursery","TFT Summer 2018 Inst 1","9,620.64","Grant Payments","190451861","27/04/2018","Early Years","Early Years Entitlement Funding for Disadvantaged 2 Year Olds","R4700"
"Wolverhampton City Council","http://opendatacommunities.org/id/metropolitan-district-council/wolverhampton","701996","Blue Group Interntl Limited T/A Bluecare","HSOC5690030","5.85","Agency Staff","130209381","06/04/2018","Child Protection","MASH","R1100"
"Wolverhampton City Council","http://opendatacommunities.org/id/metropolitan-district-council/wolverhampton","701996","Blue Group Interntl Limited T/A Bluecare","HSOC5689605","20.70","Agency Staff","130208634","04/04/2018","Child Protection","MASH","R1100"
"Wolverhampton City Council","http://opendatacommunities.org/id/metropolitan-district-council/wolverhampton","701996","Blue Group Interntl Limited T/A Bluecare","HSOC5689604","1,110.00","Agency Staff","130208633","04/04/2018","Child Protection","MASH","R1100"
"Wolverhampton City Council","http://opendatacommunities.org/id/metropolitan-district-council/wolverhampton","701996","Blue Group Interntl Limited T/A Bluecare","HSOC5690029","1,369.00","Agency Staff","130209380","06/04/2018","Child Protection","MASH","R1100"
"Wolverhampton City Council","http://opendatacommunities.org/id/metropolitan-district-council/wolverhampton","701999","Blue Mountain Foods Limited","7610","-70.00","Provisions (Resale)","130208993","06/04/2018","Catering","Meals on Wheels","R4102"
"Wolverhampton City Council","http://opendatacommunities.org/id/metropolitan-district-council/wolverhampton","701999","Blue Mountain Foods Limited","7640","57.00","Provisions (Resale)","130211751","25/04/2018","Catering","Meals on Wheels","R4102"
"Wolverhampton City Council","http://opendatacommunities.org/id/metropolitan-district-council/wolverhampton","701999","Blue Mountain Foods Limited","7613","505.00","Provisions (Resale)","130211750","06/04/2018","Catering","Meals on Wheels","R4102"
"Wolverhampton City Council","http://opendatacommunities.org/id/metropolitan-district-council/wolverhampton","701999","Blue Mountain Foods Limited","7609","-35.00","Provisions (Resale)","130208992","06/04/2018","Catering","Meals on Wheels","R4102"
"Wolverhampton City Council","http://opendatacommunities.org/id/metropolitan-district-council/wolverhampton","701999","Blue Mountain Foods Limited","7641","19.00","Provisions (Resale)","130211752","25/04/2018","Catering","Education Catering - General Overheads","R4102"
"Wolverhampton City Council","http://opendatacommunities.org/id/metropolitan-district-council/wolverhampton","702040","Bottomline Technologies Europe Limited","UKINV-037479","1,381.58","Computing - Licences","130213941","25/04/2018","Strategic Finance","Agresso System Support","R4535"
"Wolverhampton City Council","http://opendatacommunities.org/id/metropolitan-district-council/wolverhampton","702041","Boulton Travel Limited","BTWCGPT3.3","1,275.00","Client Transport","130208319","04/04/2018","School Planning & Resources","Special - Transport","R3042"
"Wolverhampton City Council","http://opendatacommunities.org/id/metropolitan-district-council/wolverhampton","702041","Boulton Travel Limited","BTHS27","1,200.00","Education trips, Holidays, Outings & Activities","130208994","04/04/2018","Headstart","Headstart - Learning Technologies Team","R4970"
"Wolverhampton City Council","http://opendatacommunities.org/id/metropolitan-district-council/wolverhampton","702041","Boulton Travel Limited","BTWCBM5.28","1,350.00","Client Transport","130208318","04/04/2018","School Planning & Resources","Special - Transport","R3042"
"Wolverhampton City Council","http://opendatacommunities.org/id/metropolitan-district-council/wolverhampton","702041","Boulton Travel Limited","BTHS28","160.00","Client Transport","130208317","04/04/2018","Headstart","B-Safe","R3042"
"Wolverhampton City Council","http://opendatacommunities.org/id/metropolitan-district-council/wolverhampton","702041","Boulton Travel Limited","BTWCTW13.2","1,425.00","Client Transport","130208134","04/04/2018","School Planning & Resources","Special - Transport","R3042"
"Wolverhampton City Council","http://opendatacommunities.org/id/metropolitan-district-council/wolverhampton","702041","Boulton Travel Limited","BTWCBM1.28","1,425.00","Client Transport","130208635","04/04/2018","School Planning & Resources","Special - Transport","R3042"
"Wolverhampton City Council","http://opendatacommunities.org/id/metropolitan-district-council/wolverhampton","702041","Boulton Travel Limited","BTWCBM3.28","1,350.00","Client Transport","130208636","04/04/2018","School Planning & Resources","Special - Transport","R3042"
"Wolverhampton City Council","http://opendatacommunities.org/id/metropolitan-district-council/wolverhampton","702041","Boulton Travel Limited","BTWCTW12.6","1,950.00","Client Transport","130208320","04/04/2018","School Planning & Resources","Special - Transport","R3042"
"Wolverhampton City Council","http://opendatacommunities.org/id/metropolitan-district-council/wolverhampton","702041","Boulton Travel Limited","BTWCBM4.28","1,350.00","Client Transport","130208637","04/04/2018","School Planning & Resources","Special - Transport","R3042"
"Wolverhampton City Council","http://opendatacommunities.org/id/metropolitan-district-council/wolverhampton","702071","Brakes/Brakefresh","81774618","587.11","Provisions (Resale)","130210650","11/04/2018","Catering","Civic Centre Catering","R4102"
"Wolverhampton City Council","http://opendatacommunities.org/id/metropolitan-district-council/wolverhampton","702071","Brakes/Brakefresh","9269197523","30.80","Provisions (Resale)","130210651","06/04/2018","Catering","Civic Centre Catering","R4102"
"Wolverhampton City Council","http://opendatacommunities.org/id/metropolitan-district-council/wolverhampton","702071","Brakes/Brakefresh","9269193897","346.49","Provisions (Resale)","130210162","06/04/2018","Catering","Civic Centre Catering","R4102"
"Wolverhampton City Council","http://opendatacommunities.org/id/metropolitan-district-council/wolverhampton","702071","Brakes/Brakefresh","9269094900","109.89","Provisions (Resale)","130211939","06/04/2018","Catering","Civic Centre Catering","R4102"
"Wolverhampton City Council","http://opendatacommunities.org/id/metropolitan-district-council/wolverhampton","702071","Brakes/Brakefresh","9269173394","275.98","Provisions (Resale)","130210160","06/04/2018","Catering","Civic Centre Catering","R4102"
"Wolverhampton City Council","http://opendatacommunities.org/id/metropolitan-district-council/wolverhampton","702071","Brakes/Brakefresh","5505637985","17.95","Provisions (Resale)","130211935","06/04/2018","Catering","Civic Centre Catering","R4102"
"Wolverhampton City Council","http://opendatacommunities.org/id/metropolitan-district-council/wolverhampton","702071","Brakes/Brakefresh","9269217626","189.43","Provisions (Resale)","130212445","20/04/2018","Catering","Civic Centre Catering","R4102"
"Wolverhampton City Council","http://opendatacommunities.org/id/metropolitan-district-council/wolverhampton","702071","Brakes/Brakefresh","9269197524","100.44","Provisions (Resale)","130210652","06/04/2018","Catering","Civic Centre Catering","R4102"
"Wolverhampton City Council","http://opendatacommunities.org/id/metropolitan-district-council/wolverhampton","702071","Brakes/Brakefresh","9262209311","202.44","Provisions (Resale)","130212444","18/04/2018","Catering","Civic Centre Catering","R4102"
"Wolverhampton City Council","http://opendatacommunities.org/id/metropolitan-district-council/wolverhampton","702071","Brakes/Brakefresh","9269099211","174.23","Provisions (Resale)","130211937","06/04/2018","Catering","Civic Centre Catering","R4102"
"Wolverhampton City Council","http://opendatacommunities.org/id/metropolitan-district-council/wolverhampton","702071","Brakes/Brakefresh","556538","-27.00","Provisions (Resale)","130213314","20/04/2018","Catering","Civic Centre Catering","R4102"
"Wolverhampton City Council","http://opendatacommunities.org/id/metropolitan-district-council/wolverhampton","702071","Brakes/Brakefresh","5505725751","12.95","Provisions (Resale)","130211938","06/04/2018","Catering","Civic Centre Catering","R4102"
"Wolverhampton City Council","http://opendatacommunities.org/id/metropolitan-district-council/wolverhampton","702071","Brakes/Brakefresh","5505688006","38.32","Provisions (Resale)","130211936","06/04/2018","Catering","Civic Centre Catering","R4102"
"Wolverhampton City Council","http://opendatacommunities.org/id/metropolitan-district-council/wolverhampton","702071","Brakes/Brakefresh","9269182206","312.44","Provisions (Resale)","130210161","06/04/2018","Catering","Civic Centre Catering","R4102"
"Wolverhampton City Council","http://opendatacommunities.org/id/metropolitan-district-council/wolverhampton","702071","Brakes/Brakefresh","81781509","85.00","Provisions (Resale)","130212217","20/04/2018","Catering","Civic Centre Catering","R4102"
"Wolverhampton City Council","http://opendatacommunities.org/id/metropolitan-district-council/wolverhampton","702093","Briggs Equiptment UK Limited","107174620","413.33","Hire of Vehicles","130211038","18/04/2018","Markets","Wholesale Market Facilities Management","R3200"
"Wolverhampton City Council","http://opendatacommunities.org/id/metropolitan-district-council/wolverhampton","702126","BT (Phone Bills)","CM64920663 Q039DM","91.80","Fixtures and Fittings - R&M","190448621","18/04/2018","Facilities Management","Bilston Town Hall","R2502"
"Wolverhampton City Council","http://opendatacommunities.org/id/metropolitan-district-council/wolverhampton","702126","BT (Phone Bills)","VP 88573270 Q04801","221.40","Fixtures and Fittings - R&M","190448622","18/04/2018","Maintenance Programme","Centralised R&M","R2502"
"Wolverhampton City Council","http://opendatacommunities.org/id/metropolitan-district-council/wolverhampton","702126","BT (Phone Bills)","CM59126723 Q116P12","91.80","Fixtures and Fittings - R&M","190442644","04/04/2018","Facilities Management","Caretakers Community Centre","R2502"
"Wolverhampton City Council","http://opendatacommunities.org/id/metropolitan-district-council/wolverhampton","702126","BT (Phone Bills)","78832170AC01 26151969 Q073","356.50","Equipment - Hire","130191286","25/04/2018","Operation & Maintenance of Existing Network","UTC Dudley","R4001"
"Wolverhampton City Council","http://opendatacommunities.org/id/metropolitan-district-council/wolverhampton","702126","BT (Phone Bills)","CM59402768 Q163BY","73.80","Fixtures and Fittings - R&M","190446017","11/04/2018","Facilities Management","Civic Centre","R2502"
"Wolverhampton City Council","http://opendatacommunities.org/id/metropolitan-district-council/wolverhampton","702126","BT (Phone Bills)","W 92336370 Q03401","1,906.89","Equipment - Hire","130138287","27/04/2018","Operation & Maintenance of Existing Network","UTC Wolverhampton","R4001"
"Wolverhampton City Council","http://opendatacommunities.org/id/metropolitan-district-council/wolverhampton","702126","BT (Phone Bills)","VP 923VP 92336370 Q03901 NV","2,040.80","Equipment - Hire","130200615","27/04/2018","Operation & Maintenance of Existing Network","UTC Wolverhampton","R4001"
"Wolverhampton City Council","http://opendatacommunities.org/id/metropolitan-district-council/wolverhampton","702126","BT (Phone Bills)","VP 92336370 Q3601 B5","2,017.20","Equipment - Hire","130163111","27/04/2018","Operation & Maintenance of Existing Network","UTC Wolverhampton","R4001"
"Wolverhampton City Council","http://opendatacommunities.org/id/metropolitan-district-council/wolverhampton","702126","BT (Phone Bills)","VP 92336370 Q03501","1,909.65","Equipment - Hire","130150778","27/04/2018","Operation & Maintenance of Existing Network","UTC Wolverhampton","R4001"
"Wolverhampton City Council","http://opendatacommunities.org/id/metropolitan-district-council/wolverhampton","702126","BT (Phone Bills)","CM68451735 M032V8","24.69","Fixtures and Fittings - R&M","190446018","11/04/2018","Facilities Management","Victoria Square, Block 11","R2502"
"Wolverhampton City Council","http://opendatacommunities.org/id/metropolitan-district-council/wolverhampton","702126","BT (Phone Bills)","78832170AC01 26122018 Q071","330.00","Equipment - Hire","130168101","25/04/2018","Operation & Maintenance of Existing Network","UTC Dudley","R4001"
"Wolverhampton City Council","http://opendatacommunities.org/id/metropolitan-district-council/wolverhampton","702126","BT (Phone Bills)","78832170AC01 26166460 Q074","356.50","Equipment - Hire","130201543","25/04/2018","Operation & Maintenance of Existing Network","UTC Dudley","R4001"
"Wolverhampton City Council","http://opendatacommunities.org/id/metropolitan-district-council/wolverhampton","702126","BT (Phone Bills)","CM59966476 Q105M5","112.92","Fixtures and Fittings - R&M","190448616","18/04/2018","Facilities Management","Caretakers Community Centre","R2502"
"Wolverhampton City Council","http://opendatacommunities.org/id/metropolitan-district-council/wolverhampton","702126","BT (Phone Bills)","CM59689433 Q109X7","91.80","Fixtures and Fittings - R&M","190448619","18/04/2018","Facilities Management","Management of Vacant Properties","R2502"
"Wolverhampton City Council","http://opendatacommunities.org/id/metropolitan-district-council/wolverhampton","702126","BT (Phone Bills)","CM635349160511","187.60","Comms - Telephone Call charges","130209951","04/04/2018","Adult Education","Central Costs","R4505"
"Wolverhampton City Council","http://opendatacommunities.org/id/metropolitan-district-council/wolverhampton","702126","BT (Phone Bills)","CM59609271 Q112P6","91.80","Fixtures and Fittings - R&M","190442641","04/04/2018","Facilities Management","Caretakers Community Centre","R2502"
"Wolverhampton City Council","http://opendatacommunities.org/id/metropolitan-district-council/wolverhampton","702126","BT (Phone Bills)","VP 92336370 Q03701","2,017.20","Equipment - Hire","130177816","27/04/2018","Operation & Maintenance of Existing Network","UTC Wolverhampton","R4001"
"Wolverhampton City Council","http://opendatacommunities.org/id/metropolitan-district-council/wolverhampton","702126","BT (Phone Bills)","Q079CH","1,070.95","Comms - Telephone Call charges","190452089","27/04/2018","Leisure Services","Aldersley Leisure Village","R4505"
"Wolverhampton City Council","http://opendatacommunities.org/id/metropolitan-district-council/wolverhampton","702126","BT (Phone Bills)","CM61646492 Q077XH","91.80","Fixtures and Fittings - R&M","190442640","04/04/2018","Facilities Management","Caretakers Community Centre","R2502"
"Wolverhampton City Council","http://opendatacommunities.org/id/metropolitan-district-council/wolverhampton","702126","BT (Phone Bills)","CM631054750561","131.80","Comms - Telephone Call charges","130209950","04/04/2018","Adult Education","Old Hall Street Main","R4505"
"Wolverhampton City Council","http://opendatacommunities.org/id/metropolitan-district-council/wolverhampton","702126","BT (Phone Bills)","78832170AC01 26138378 Q072","330.00","Equipment - Hire","130179333","25/04/2018","Operation & Maintenance of Existing Network","UTC Dudley","R4001"
"Wolverhampton City Council","http://opendatacommunities.org/id/metropolitan-district-council/wolverhampton","702126","BT (Phone Bills)","CM60158329 Q101TA","91.80","Fixtures and Fittings - R&M","190448615","18/04/2018","Facilities Management","Caretakers Community Centre","R2502"
"Wolverhampton City Council","http://opendatacommunities.org/id/metropolitan-district-council/wolverhampton","702126","BT (Phone Bills)","CM63816541 Q048Y1","106.96","Fixtures and Fittings - R&M","190448617","18/04/2018","Facilities Management","Caretakers Community Centre","R2502"
"Wolverhampton City Council","http://opendatacommunities.org/id/metropolitan-district-council/wolverhampton","702126","BT (Phone Bills)","CM68451735 M032V8(1)","40.00","Fixtures and Fittings - R&M","190446019","11/04/2018","Facilities Management","Victoria Square, Block 11","R2502"
"Wolverhampton City Council","http://opendatacommunities.org/id/metropolitan-district-council/wolverhampton","702126","BT (Phone Bills)","VP 92336370 Q08301 &E","2,054.24","Equipment - Hire","130125882","27/04/2018","Operation & Maintenance of Existing Network","UTC Wolverhampton","R4001"
"Wolverhampton City Council","http://opendatacommunities.org/id/metropolitan-district-council/wolverhampton","702126","BT (Phone Bills)","VP 92336370 Q03801","2,017.20","Equipment - Hire","130189520","27/04/2018","Operation & Maintenance of Existing Network","UTC Wolverhampton","R4001"
"Wolverhampton City Council","http://opendatacommunities.org/id/metropolitan-district-council/wolverhampton","702126","BT (Phone Bills)","CM68637223 Q009SQ","73.80","Fixtures and Fittings - R&M","190448618","18/04/2018","Facilities Management","Management of Vacant Properties","R2502"
"Wolverhampton City Council","http://opendatacommunities.org/id/metropolitan-district-council/wolverhampton","702126","BT (Phone Bills)","CM64920657 Q039&G","91.80","Fixtures and Fittings - R&M","190448620","18/04/2018","Facilities Management","Bilston Town Hall","R2502"
"Wolverhampton City Council","http://opendatacommunities.org/id/metropolitan-district-council/wolverhampton","702126","BT (Phone Bills)","Q090 30","135.52","Comms - Telephone Call charges","130209952","11/04/2018","Adults Assessment & Care Management North","Assessment Team (North)","R4505"
"Wolverhampton City Council","http://opendatacommunities.org/id/metropolitan-district-council/wolverhampton","702126","BT (Phone Bills)","CM68451735 M032V8(2)","428.72","Fixtures and Fittings - R&M","190446020","11/04/2018","Facilities Management","Victoria Square, Block 11","R2502"
"Wolverhampton City Council","http://opendatacommunities.org/id/metropolitan-district-council/wolverhampton","702126","BT (Phone Bills)","CM66892145 Q027WW","91.80","Fixtures and Fittings - R&M","190442643","04/04/2018","Facilities Management","Caretakers Community Centre","R2502"
"Wolverhampton City Council","http://opendatacommunities.org/id/metropolitan-district-council/wolverhampton","702126","BT (Phone Bills)","CM59297898 Q116OM","96.48","Fixtures and Fittings - R&M","190442642","04/04/2018","Facilities Management","Caretakers Community Centre","R2502"
"Wolverhampton City Council","http://opendatacommunities.org/id/metropolitan-district-council/wolverhampton","702157","Browne Jacobson Llp","TP10051/LG 375788","849.50","Insurance - General","190446723","11/04/2018","Audit Services","Legal Liability","R4962"
"Wolverhampton City Council","http://opendatacommunities.org/id/metropolitan-district-council/wolverhampton","702157","Browne Jacobson Llp","TP160145/LG - 378305","3,595.22","Insurance - General","190446724","11/04/2018","Audit Services","Legal Liability","R4962"
"Wolverhampton City Council","http://opendatacommunities.org/id/metropolitan-district-council/wolverhampton","702157","Browne Jacobson Llp","My ref: TP120141/LG Your ref 384300","905.00","Insurance - General","190448623","18/04/2018","Audit Services","Legal Liability","R4962"
"Wolverhampton City Council","http://opendatacommunities.org/id/metropolitan-district-council/wolverhampton","702157","Browne Jacobson Llp","TP10121/LG - 384350","1,630.50","Insurance - General","190450970","25/04/2018","Audit Services","Legal Liability","R4962"
"Wolverhampton City Council","http://opendatacommunities.org/id/metropolitan-district-council/wolverhampton","702157","Browne Jacobson Llp","EL150023/SC3/380588/2","1,599.00","Insurance - General","190450969","25/04/2018","Audit Services","Legal Liability","R4962"
"Wolverhampton City Council","http://opendatacommunities.org/id/metropolitan-district-council/wolverhampton","702157","Browne Jacobson Llp","TP160206/LG - 384301","251.50","Insurance - General","190450972","25/04/2018","Audit Services","Legal Liability","R4962"
"Wolverhampton City Council","http://opendatacommunities.org/id/metropolitan-district-council/wolverhampton","702171","BT (Business)","IN04057036","177.79","Equipment - Purchase","130209713","11/04/2018","School Planning & Resources","Education Data Services","R4000"
"Wolverhampton City Council","http://opendatacommunities.org/id/metropolitan-district-council/wolverhampton","702171","BT (Business)","IN04060011","555.00","Equipment - Purchase","130209953","11/04/2018","School Planning & Resources","Education Data Services","R4000"
"Wolverhampton City Council","http://opendatacommunities.org/id/metropolitan-district-council/wolverhampton","702171","BT (Business)","IN04049860","289.00","Equipment - Purchase","130208783","04/04/2018","School Planning & Resources","Education Data Services","R4000"
"Wolverhampton City Council","http://opendatacommunities.org/id/metropolitan-district-council/wolverhampton","702172","BT Global","468193","1,397.92","Equipment - Hire","130209714","11/04/2018","Operation & Maintenance of Existing Network","UTC - Sandwell MBC","R4001"
"Wolverhampton City Council","http://opendatacommunities.org/id/metropolitan-district-council/wolverhampton","702172","BT Global","467711","50,000.00","Plant, Equipment, Machinery & Computer Hardware","130209384","06/04/2018","-","Integrated Transport","C3000"
"Wolverhampton City Council","http://opendatacommunities.org/id/metropolitan-district-council/wolverhampton","702172","BT Global","468114","17,738.00","Equipment - Hire","130209540","11/04/2018","Operation & Maintenance of Existing Network","Walsall Recovery Costs","R4001"
"Wolverhampton City Council","http://opendatacommunities.org/id/metropolitan-district-council/wolverhampton","702172","BT Global","464464","6,039.49","Equipment - Hire","130211222","04/04/2018","Operation & Maintenance of Existing Network","UTC - Sandwell MBC","R4001"
"Wolverhampton City Council","http://opendatacommunities.org/id/metropolitan-district-council/wolverhampton","702172","BT Global","468159","5,473.23","Equipment - Hire","130210167","11/04/2018","Operation & Maintenance of Existing Network","UTC Dudley","R4001"
"Wolverhampton City Council","http://opendatacommunities.org/id/metropolitan-district-council/wolverhampton","702179","Bulk Minerals Limited","002138","194.19","Materials","130212914","25/04/2018","Environmental Maintenance","Direct Schools","R4007"
"Wolverhampton City Council","http://opendatacommunities.org/id/metropolitan-district-council/wolverhampton","702179","Bulk Minerals Limited","002077","158.89","Materials","130211756","25/04/2018","Environmental Maintenance","Direct Schools","R4007"
"Wolverhampton City Council","http://opendatacommunities.org/id/metropolitan-district-council/wolverhampton","702181","United Living","CSIN000435","75,100.00","Construction and Conversion","130211527","04/04/2018","-","Decent Homes - Stock Improvements","C1100"
"Wolverhampton City Council","http://opendatacommunities.org/id/metropolitan-district-council/wolverhampton","702181","United Living","CSIN000440","36,511.00","R&M - Departmental planned (external)","130211532","04/04/2018","Housing Revenue Account","Amounts to be Settled with Wolverhampton Homes","R2001"
"Wolverhampton City Council","http://opendatacommunities.org/id/metropolitan-district-council/wolverhampton","702181","United Living","CSIN000438","222,123.00","Construction and Conversion","130211530","04/04/2018","-","Refurbishment of Voids","C1100"
"Wolverhampton City Council","http://opendatacommunities.org/id/metropolitan-district-council/wolverhampton","702181","United Living","CSIN000436","83,213.00","Construction and Conversion","130211528","04/04/2018","-","Decent Homes - Stock Improvements","C1100"
"Wolverhampton City Council","http://opendatacommunities.org/id/metropolitan-district-council/wolverhampton","702181","United Living","CSIN000437","11,531.00","Construction and Conversion","130211529","04/04/2018","-","Structural works","C1100"
"Wolverhampton City Council","http://opendatacommunities.org/id/metropolitan-district-council/wolverhampton","702181","United Living","CSIN000439","451,881.00","Construction and Conversion","130211531","04/04/2018","-","Decent Homes - Stock Improvements","C1100"
"Wolverhampton City Council","http://opendatacommunities.org/id/metropolitan-district-council/wolverhampton","702201","Bury M.B.C","34198700","38,621.82","TPP - Payments to Local Authorities","130213129","25/04/2018","Standards and Vulnerable Pupils","SEN Education OOC","R5100"
"Wolverhampton City Council","http://opendatacommunities.org/id/metropolitan-district-council/wolverhampton","702231","Bytes Software Services Limited","507563","100.13","Computing - Purchase of Software","130209541","11/04/2018","Headstart","Headstart - Young People Engagement","R4531"
"Wolverhampton City Council","http://opendatacommunities.org/id/metropolitan-district-council/wolverhampton","702231","Bytes Software Services Limited","508511","1,353.54","Plant, Equipment, Machinery & Computer Hardware","130211533","18/04/2018","-","ICT General Programme","C3000"
"Wolverhampton City Council","http://opendatacommunities.org/id/metropolitan-district-council/wolverhampton","702231","Bytes Software Services Limited","508765","1,165.02","Computing - Licences","130211534","20/04/2018","Black Country Transport","Black Country Transport Director","R4535"
"Wolverhampton City Council","http://opendatacommunities.org/id/metropolitan-district-council/wolverhampton","702249","C M Community Care Services Limited","APEL01920180403","197.68","TPP - Home Care","190444150","04/04/2018","Older People Care Purchasing","OP Care Purchasing (Spot Placements)","R5420"
"Wolverhampton City Council","http://opendatacommunities.org/id/metropolitan-district-council/wolverhampton","702249","C M Community Care Services Limited","APEL01920180403","197.68","TPP - Home Care","190444150","04/04/2018","Older People Care Purchasing","OP Care Purchasing (Spot Placements)","R5420"
"Wolverhampton City Council","http://opendatacommunities.org/id/metropolitan-district-council/wolverhampton","702249","C M Community Care Services Limited","BBRO00320180403","21.18","TPP - Home Care","190444154","04/04/2018","Older People Care Purchasing","OP Care Purchasing (Spot Placements)","R5420"
"Wolverhampton City Council","http://opendatacommunities.org/id/metropolitan-district-council/wolverhampton","702249","C M Community Care Services Limited","LCON03920180403","247.10","TPP - Home Care","190444166","04/04/2018","Physical Disabilities Care Purchasing","PD Care Purchasing (Spot Placements)","R5420"
"Wolverhampton City Council","http://opendatacommunities.org/id/metropolitan-district-council/wolverhampton","702249","C M Community Care Services Limited","LCON03920180403","247.10","TPP - Home Care","190444166","04/04/2018","Physical Disabilities Care Purchasing","PD Care Purchasing (Spot Placements)","R5420"
"Wolverhampton City Council","http://opendatacommunities.org/id/metropolitan-district-council/wolverhampton","702249","C M Community Care Services Limited","EMAT00420180403","74.13","TPP - Home Care","190444158","04/04/2018","Older People Care Purchasing","OP Care Purchasing (Spot Placements)","R5420"
"Wolverhampton City Council","http://opendatacommunities.org/id/metropolitan-district-council/wolverhampton","702249","C M Community Care Services Limited","EMAT00420180403","74.13","TPP - Home Care","190444158","04/04/2018","Older People Care Purchasing","OP Care Purchasing (Spot Placements)","R5420"
"Wolverhampton City Council","http://opendatacommunities.org/id/metropolitan-district-council/wolverhampton","702249","C M Community Care Services Limited","JREI02020180403","197.68","TPP - Home Care","190444162","04/04/2018","Older People Care Purchasing","OP Care Purchasing (Spot Placements)","R5420"
"Wolverhampton City Council","http://opendatacommunities.org/id/metropolitan-district-council/wolverhampton","702249","C M Community Care Services Limited","JREI02020180403","197.68","TPP - Home Care","190444162","04/04/2018","Older People Care Purchasing","OP Care Purchasing (Spot Placements)","R5420"
"Wolverhampton City Council","http://opendatacommunities.org/id/metropolitan-district-council/wolverhampton","702249","C M Community Care Services Limited","MHAR01020180403","98.84","TPP - Home Care","190444170","04/04/2018","Older People Care Purchasing","OP Care Purchasing (Spot Placements)","R5420"
"Wolverhampton City Council","http://opendatacommunities.org/id/metropolitan-district-council/wolverhampton","702249","C M Community Care Services Limited","MHAR01020180403","98.84","TPP - Home Care","190444170","04/04/2018","Older People Care Purchasing","OP Care Purchasing (Spot Placements)","R5420"
"Wolverhampton City Council","http://opendatacommunities.org/id/metropolitan-district-council/wolverhampton","702249","C M Community Care Services Limited","MMAL01720180403","70.60","TPP - Home Care","190444174","04/04/2018","Physical Disabilities Care Purchasing","PD Care Purchasing (Spot Placements)","R5420"
"Wolverhampton City Council","http://opendatacommunities.org/id/metropolitan-district-council/wolverhampton","702249","C M Community Care Services Limited","MMAL01720180403","70.60","TPP - Home Care","190444174","04/04/2018","Physical Disabilities Care Purchasing","PD Care Purchasing (Spot Placements)","R5420"
"Wolverhampton City Council","http://opendatacommunities.org/id/metropolitan-district-council/wolverhampton","702249","C M Community Care Services Limited","PMOR01420180403","197.68","TPP - Home Care","190444178","04/04/2018","Older People Care Purchasing","OP Care Purchasing (Spot Placements)","R5420"
"Wolverhampton City Council","http://opendatacommunities.org/id/metropolitan-district-council/wolverhampton","702249","C M Community Care Services Limited","PMOR01420180403","197.68","TPP - Home Care","190444178","04/04/2018","Older People Care Purchasing","OP Care Purchasing (Spot Placements)","R5420"
"Wolverhampton City Council","http://opendatacommunities.org/id/metropolitan-district-council/wolverhampton","702249","C M Community Care Services Limited","RTRO02820180403","197.68","TPP - Home Care","190444182","04/04/2018","Older People Care Purchasing","OP Care Purchasing (Spot Placements)","R5420"
"Wolverhampton City Council","http://opendatacommunities.org/id/metropolitan-district-council/wolverhampton","702249","C M Community Care Services Limited","RTRO02820180403","197.68","TPP - Home Care","190444182","04/04/2018","Older People Care Purchasing","OP Care Purchasing (Spot Placements)","R5420"
"Wolverhampton City Council","http://opendatacommunities.org/id/metropolitan-district-council/wolverhampton","702249","C M Community Care Services Limited","RTRO02420180329","197.68","TPP - Home Care","190443998","04/04/2018","Older People Care Purchasing","OP Care Purchasing (Spot Placements)","R5420"
"Wolverhampton City Council","http://opendatacommunities.org/id/metropolitan-district-council/wolverhampton","702249","C M Community Care Services Limited","RTRO02420180329","197.68","TPP - Home Care","190443998","04/04/2018","Older People Care Purchasing","OP Care Purchasing (Spot Placements)","R5420"
"Wolverhampton City Council","http://opendatacommunities.org/id/metropolitan-district-council/wolverhampton","702249","C M Community Care Services Limited","NDON00120180411","169.44","TPP - Home Care","190447158","13/04/2018","Older People Care Purchasing","OP Care Purchasing (Spot Placements)","R5420"
"Wolverhampton City Council","http://opendatacommunities.org/id/metropolitan-district-council/wolverhampton","702249","C M Community Care Services Limited","NDON00120180411","197.68","TPP - Home Care","190447158","13/04/2018","Older People Care Purchasing","OP Care Purchasing (Spot Placements)","R5420"
"Wolverhampton City Council","http://opendatacommunities.org/id/metropolitan-district-council/wolverhampton","702249","C M Community Care Services Limited","MHAY01120180411","42.36","TPP - Home Care","190447156","13/04/2018","Older People Care Purchasing","OP Care Purchasing (Spot Placements)","R5420"
"Wolverhampton City Council","http://opendatacommunities.org/id/metropolitan-district-council/wolverhampton","702249","C M Community Care Services Limited","MHAY01120180411","197.68","TPP - Home Care","190447156","13/04/2018","Older People Care Purchasing","OP Care Purchasing (Spot Placements)","R5420"
"Wolverhampton City Council","http://opendatacommunities.org/id/metropolitan-district-council/wolverhampton","702249","C M Community Care Services Limited","GBRI00120180411","77.66","TPP - Home Care","190447150","13/04/2018","Older People Care Purchasing","OP Care Purchasing (Spot Placements)","R5420"
"Wolverhampton City Council","http://opendatacommunities.org/id/metropolitan-district-council/wolverhampton","702249","C M Community Care Services Limited","JREI02120180411","197.68","TPP - Home Care","190447151","13/04/2018","Older People Care Purchasing","OP Care Purchasing (Spot Placements)","R5420"
"Wolverhampton City Council","http://opendatacommunities.org/id/metropolitan-district-council/wolverhampton","702249","C M Community Care Services Limited","JREI02120180411","197.68","TPP - Home Care","190447151","13/04/2018","Older People Care Purchasing","OP Care Purchasing (Spot Placements)","R5420"
"Wolverhampton City Council","http://opendatacommunities.org/id/metropolitan-district-council/wolverhampton","702249","C M Community Care Services Limited","EMAT00520180411","74.13","TPP - Home Care","190447148","13/04/2018","Older People Care Purchasing","OP Care Purchasing (Spot Placements)","R5420"
"Wolverhampton City Council","http://opendatacommunities.org/id/metropolitan-district-council/wolverhampton","702249","C M Community Care Services Limited","EMAT00520180411","74.13","TPP - Home Care","190447148","13/04/2018","Older People Care Purchasing","OP Care Purchasing (Spot Placements)","R5420"
"Wolverhampton City Council","http://opendatacommunities.org/id/metropolitan-district-council/wolverhampton","702249","C M Community Care Services Limited","MBEN01820180426","203.28","TPP - Home Care","190452032","27/04/2018","Older People Care Purchasing","OP Care Purchasing (Spot Placements)","R5420"
"Wolverhampton City Council","http://opendatacommunities.org/id/metropolitan-district-council/wolverhampton","702249","C M Community Care Services Limited","BBOO00720180426","228.69","TPP - Home Care","190452023","27/04/2018","Older People Care Purchasing","OP Care Purchasing (Spot Placements)","R5420"
"Wolverhampton City Council","http://opendatacommunities.org/id/metropolitan-district-council/wolverhampton","702249","C M Community Care Services Limited","BBOO00720180426","228.69","TPP - Home Care","190452023","27/04/2018","Older People Care Purchasing","OP Care Purchasing (Spot Placements)","R5420"
"Wolverhampton City Council","http://opendatacommunities.org/id/metropolitan-district-council/wolverhampton","702249","C M Community Care Services Limited","EMAT00820180426","76.23","TPP - Home Care","190452025","27/04/2018","Older People Care Purchasing","OP Care Purchasing (Spot Placements)","R5420"
"Wolverhampton City Council","http://opendatacommunities.org/id/metropolitan-district-council/wolverhampton","702249","C M Community Care Services Limited","EMAT00820180426","76.23","TPP - Home Care","190452025","27/04/2018","Older People Care Purchasing","OP Care Purchasing (Spot Placements)","R5420"
"Wolverhampton City Council","http://opendatacommunities.org/id/metropolitan-district-council/wolverhampton","702249","C M Community Care Services Limited","MBEN01820180426","203.28","TPP - Home Care","190452032","27/04/2018","Older People Care Purchasing","OP Care Purchasing (Spot Placements)","R5420"
"Wolverhampton City Council","http://opendatacommunities.org/id/metropolitan-district-council/wolverhampton","702249","C M Community Care Services Limited","TLAM01520180426","152.46","TPP - Home Care","190452039","27/04/2018","Older People Care Purchasing","OP Care Purchasing (Spot Placements)","R5420"
"Wolverhampton City Council","http://opendatacommunities.org/id/metropolitan-district-council/wolverhampton","702249","C M Community Care Services Limited","TLAM01520180426","152.46","TPP - Home Care","190452039","27/04/2018","Older People Care Purchasing","OP Care Purchasing (Spot Placements)","R5420"
"Wolverhampton City Council","http://opendatacommunities.org/id/metropolitan-district-council/wolverhampton","702249","C M Community Care Services Limited","DRYA09020180426","61.71","TPP - Home Care","190452024","27/04/2018","Older People Care Purchasing","OP Care Purchasing (Spot Placements)","R5420"
"Wolverhampton City Council","http://opendatacommunities.org/id/metropolitan-district-council/wolverhampton","702249","C M Community Care Services Limited","DRYA09020180426","61.71","TPP - Home Care","190452024","27/04/2018","Older People Care Purchasing","OP Care Purchasing (Spot Placements)","R5420"
"Wolverhampton City Council","http://opendatacommunities.org/id/metropolitan-district-council/wolverhampton","702249","C M Community Care Services Limited","EMAT00720180423","76.23","TPP - Home Care","190450147","25/04/2018","Older People Care Purchasing","OP Care Purchasing (Spot Placements)","R5420"
"Wolverhampton City Council","http://opendatacommunities.org/id/metropolitan-district-council/wolverhampton","702249","C M Community Care Services Limited","EMAT00720180423","76.23","TPP - Home Care","190450147","25/04/2018","Older People Care Purchasing","OP Care Purchasing (Spot Placements)","R5420"
"Wolverhampton City Council","http://opendatacommunities.org/id/metropolitan-district-council/wolverhampton","702249","C M Community Care Services Limited","TLAM01420180423","152.46","TPP - Home Care","190450161","25/04/2018","Older People Care Purchasing","OP Care Purchasing (Spot Placements)","R5420"
"Wolverhampton City Council","http://opendatacommunities.org/id/metropolitan-district-council/wolverhampton","702249","C M Community Care Services Limited","TLAM01420180423","152.46","TPP - Home Care","190450161","25/04/2018","Older People Care Purchasing","OP Care Purchasing (Spot Placements)","R5420"
"Wolverhampton City Council","http://opendatacommunities.org/id/metropolitan-district-council/wolverhampton","702249","C M Community Care Services Limited","RDOD09620180423","203.28","TPP - Home Care","190450160","25/04/2018","Older People Care Purchasing","OP Care Purchasing (Spot Placements)","R5420"
"Wolverhampton City Council","http://opendatacommunities.org/id/metropolitan-district-council/wolverhampton","702249","C M Community Care Services Limited","MBEN01720180423","203.28","TPP - Home Care","190450154","25/04/2018","Older People Care Purchasing","OP Care Purchasing (Spot Placements)","R5420"
"Wolverhampton City Council","http://opendatacommunities.org/id/metropolitan-district-council/wolverhampton","702249","C M Community Care Services Limited","MBEN01720180423","203.28","TPP - Home Care","190450154","25/04/2018","Older People Care Purchasing","OP Care Purchasing (Spot Placements)","R5420"
"Wolverhampton City Council","http://opendatacommunities.org/id/metropolitan-district-council/wolverhampton","702249","C M Community Care Services Limited","RDOD09520180416","203.28","TPP - Home Care","190448524","18/04/2018","Older People Care Purchasing","OP Care Purchasing (Spot Placements)","R5420"
"Wolverhampton City Council","http://opendatacommunities.org/id/metropolitan-district-council/wolverhampton","702249","C M Community Care Services Limited","MBEN01620180416","203.28","TPP - Home Care","190448519","18/04/2018","Older People Care Purchasing","OP Care Purchasing (Spot Placements)","R5420"
"Wolverhampton City Council","http://opendatacommunities.org/id/metropolitan-district-council/wolverhampton","702249","C M Community Care Services Limited","MBEN01620180416","203.28","TPP - Home Care","190448519","18/04/2018","Older People Care Purchasing","OP Care Purchasing (Spot Placements)","R5420"
"Wolverhampton City Council","http://opendatacommunities.org/id/metropolitan-district-council/wolverhampton","702249","C M Community Care Services Limited","TLAM01320180416","152.46","TPP - Home Care","190448525","18/04/2018","Older People Care Purchasing","OP Care Purchasing (Spot Placements)","R5420"
"Wolverhampton City Council","http://opendatacommunities.org/id/metropolitan-district-council/wolverhampton","702249","C M Community Care Services Limited","TLAM01320180416","152.46","TPP - Home Care","190448525","18/04/2018","Older People Care Purchasing","OP Care Purchasing (Spot Placements)","R5420"
"Wolverhampton City Council","http://opendatacommunities.org/id/metropolitan-district-council/wolverhampton","702249","C M Community Care Services Limited","MMAL01920180417","72.60","TPP - Home Care","190448815","18/04/2018","Physical Disabilities Care Purchasing","PD Care Purchasing (Spot Placements)","R5420"
"Wolverhampton City Council","http://opendatacommunities.org/id/metropolitan-district-council/wolverhampton","702249","C M Community Care Services Limited","MMAL01920180417","72.60","TPP - Home Care","190448815","18/04/2018","Physical Disabilities Care Purchasing","PD Care Purchasing (Spot Placements)","R5420"
"Wolverhampton City Council","http://opendatacommunities.org/id/metropolitan-district-council/wolverhampton","702249","C M Community Care Services Limited","BBOO00520180416","228.69","TPP - Home Care","190448512","18/04/2018","Older People Care Purchasing","OP Care Purchasing (Spot Placements)","R5420"
"Wolverhampton City Council","http://opendatacommunities.org/id/metropolitan-district-council/wolverhampton","702249","C M Community Care Services Limited","BBOO00520180416","228.69","TPP - Home Care","190448512","18/04/2018","Older People Care Purchasing","OP Care Purchasing (Spot Placements)","R5420"
"Wolverhampton City Council","http://opendatacommunities.org/id/metropolitan-district-council/wolverhampton","702249","C M Community Care Services Limited","ABAT02920180416","203.28","TPP - Home Care","190448511","18/04/2018","Older People Care Purchasing","OP Care Purchasing (Spot Placements)","R5420"
"Wolverhampton City Council","http://opendatacommunities.org/id/metropolitan-district-council/wolverhampton","702249","C M Community Care Services Limited","ABAT02920180416","203.28","TPP - Home Care","190448511","18/04/2018","Older People Care Purchasing","OP Care Purchasing (Spot Placements)","R5420"
"Wolverhampton City Council","http://opendatacommunities.org/id/metropolitan-district-council/wolverhampton","702249","C M Community Care Services Limited","NDON00220180416","203.28","TPP - Home Care","190448521","18/04/2018","Older People Care Purchasing","OP Care Purchasing (Spot Placements)","R5420"
"Wolverhampton City Council","http://opendatacommunities.org/id/metropolitan-district-council/wolverhampton","702249","C M Community Care Services Limited","NDON00220180416","203.28","TPP - Home Care","190448521","18/04/2018","Older People Care Purchasing","OP Care Purchasing (Spot Placements)","R5420"
"Wolverhampton City Council","http://opendatacommunities.org/id/metropolitan-district-council/wolverhampton","702249","C M Community Care Services Limited","NMIS00720180416","112.53","TPP - Home Care","190448522","18/04/2018","Learning Disabilities Care Purchasing","LD Care Purchasing (Spot Placements)","R5420"
"Wolverhampton City Council","http://opendatacommunities.org/id/metropolitan-district-council/wolverhampton","702249","C M Community Care Services Limited","JBEN00120180423","58.08","TPP - Home Care","190450150","25/04/2018","Older People Care Purchasing","OP Care Purchasing (Spot Placements)","R5420"
"Wolverhampton City Council","http://opendatacommunities.org/id/metropolitan-district-council/wolverhampton","702249","C M Community Care Services Limited","JBEN00120180423","87.12","TPP - Home Care","190450150","25/04/2018","Older People Care Purchasing","OP Care Purchasing (Spot Placements)","R5420"
"Wolverhampton City Council","http://opendatacommunities.org/id/metropolitan-district-council/wolverhampton","702249","C M Community Care Services Limited","GBRI00320180423","152.46","TPP - Home Care","190450149","25/04/2018","Older People Care Purchasing","OP Care Purchasing (Spot Placements)","R5420"
"Wolverhampton City Council","http://opendatacommunities.org/id/metropolitan-district-council/wolverhampton","702249","C M Community Care Services Limited","BBOO00620180423","228.69","TPP - Home Care","190450145","25/04/2018","Older People Care Purchasing","OP Care Purchasing (Spot Placements)","R5420"
"Wolverhampton City Council","http://opendatacommunities.org/id/metropolitan-district-council/wolverhampton","702249","C M Community Care Services Limited","BBOO00620180423","228.69","TPP - Home Care","190450145","25/04/2018","Older People Care Purchasing","OP Care Purchasing (Spot Placements)","R5420"
"Wolverhampton City Council","http://opendatacommunities.org/id/metropolitan-district-council/wolverhampton","702249","C M Community Care Services Limited","ABAT03020180423","203.28","TPP - Home Care","190450144","25/04/2018","Older People Care Purchasing","OP Care Purchasing (Spot Placements)","R5420"
"Wolverhampton City Council","http://opendatacommunities.org/id/metropolitan-district-council/wolverhampton","702249","C M Community Care Services Limited","ABAT03020180423","203.28","TPP - Home Care","190450144","25/04/2018","Older People Care Purchasing","OP Care Purchasing (Spot Placements)","R5420"
"Wolverhampton City Council","http://opendatacommunities.org/id/metropolitan-district-council/wolverhampton","702249","C M Community Care Services Limited","NDON00320180423","203.28","TPP - Home Care","190450157","25/04/2018","Older People Care Purchasing","OP Care Purchasing (Spot Placements)","R5420"
"Wolverhampton City Council","http://opendatacommunities.org/id/metropolitan-district-council/wolverhampton","702249","C M Community Care Services Limited","NDON00320180423","203.28","TPP - Home Care","190450157","25/04/2018","Older People Care Purchasing","OP Care Purchasing (Spot Placements)","R5420"
"Wolverhampton City Council","http://opendatacommunities.org/id/metropolitan-district-council/wolverhampton","702249","C M Community Care Services Limited","ABAT02620180403","197.68","TPP - Home Care","190444147","04/04/2018","Older People Care Purchasing","OP Care Purchasing (Spot Placements)","R5420"
"Wolverhampton City Council","http://opendatacommunities.org/id/metropolitan-district-council/wolverhampton","702249","C M Community Care Services Limited","ABAT02620180403","197.68","TPP - Home Care","190444147","04/04/2018","Older People Care Purchasing","OP Care Purchasing (Spot Placements)","R5420"
"Wolverhampton City Council","http://opendatacommunities.org/id/metropolitan-district-council/wolverhampton","702249","C M Community Care Services Limited","BBO00220180403","222.39","TPP - Home Care","190444151","04/04/2018","Older People Care Purchasing","OP Care Purchasing (Spot Placements)","R5420"
"Wolverhampton City Council","http://opendatacommunities.org/id/metropolitan-district-council/wolverhampton","702249","C M Community Care Services Limited","BBO00220180403","222.39","TPP - Home Care","190444151","04/04/2018","Older People Care Purchasing","OP Care Purchasing (Spot Placements)","R5420"
"Wolverhampton City Council","http://opendatacommunities.org/id/metropolitan-district-council/wolverhampton","702249","C M Community Care Services Limited","DRYA08520180403","151.79","TPP - Home Care","190444155","04/04/2018","Older People Care Purchasing","OP Care Purchasing (Spot Placements)","R5420"
"Wolverhampton City Council","http://opendatacommunities.org/id/metropolitan-district-council/wolverhampton","702249","C M Community Care Services Limited","DRYA08520180403","172.97","TPP - Home Care","190444155","04/04/2018","Older People Care Purchasing","OP Care Purchasing (Spot Placements)","R5420"
"Wolverhampton City Council","http://opendatacommunities.org/id/metropolitan-district-council/wolverhampton","702249","C M Community Care Services Limited","MBEN01320180403","197.68","TPP - Home Care","190444167","04/04/2018","Older People Care Purchasing","OP Care Purchasing (Spot Placements)","R5420"
"Wolverhampton City Council","http://opendatacommunities.org/id/metropolitan-district-council/wolverhampton","702249","C M Community Care Services Limited","MBEN01320180403","197.68","TPP - Home Care","190444167","04/04/2018","Older People Care Purchasing","OP Care Purchasing (Spot Placements)","R5420"
"Wolverhampton City Council","http://opendatacommunities.org/id/metropolitan-district-council/wolverhampton","702249","C M Community Care Services Limited","LAGG03820180403","172.97","TPP - Home Care","190444163","04/04/2018","Older People Care Purchasing","OP Care Purchasing (Spot Placements)","R5420"
"Wolverhampton City Council","http://opendatacommunities.org/id/metropolitan-district-council/wolverhampton","702249","C M Community Care Services Limited","LAGG03820180403","172.97","TPP - Home Care","190444163","04/04/2018","Older People Care Purchasing","OP Care Purchasing (Spot Placements)","R5420"
"Wolverhampton City Council","http://opendatacommunities.org/id/metropolitan-district-council/wolverhampton","702249","C M Community Care Services Limited","EWE03020180403","197.68","TPP - Home Care","190444159","04/04/2018","Older People Care Purchasing","OP Care Purchasing (Spot Placements)","R5420"
"Wolverhampton City Council","http://opendatacommunities.org/id/metropolitan-district-council/wolverhampton","702249","C M Community Care Services Limited","EWE03020180403","197.68","TPP - Home Care","190444159","04/04/2018","Older People Care Purchasing","OP Care Purchasing (Spot Placements)","R5420"
"Wolverhampton City Council","http://opendatacommunities.org/id/metropolitan-district-council/wolverhampton","702249","C M Community Care Services Limited","MHAY00920180403","127.08","TPP - Home Care","190444171","04/04/2018","Older People Care Purchasing","OP Care Purchasing (Spot Placements)","R5420"
"Wolverhampton City Council","http://opendatacommunities.org/id/metropolitan-district-council/wolverhampton","702249","C M Community Care Services Limited","MHAY00920180403","197.68","TPP - Home Care","190444171","04/04/2018","Older People Care Purchasing","OP Care Purchasing (Spot Placements)","R5420"
"Wolverhampton City Council","http://opendatacommunities.org/id/metropolitan-district-council/wolverhampton","702249","C M Community Care Services Limited","NMIS00420180403","109.43","TPP - Home Care","190444175","04/04/2018","Learning Disabilities Care Purchasing","LD Care Purchasing (Spot Placements)","R5420"
"Wolverhampton City Council","http://opendatacommunities.org/id/metropolitan-district-council/wolverhampton","702249","C M Community Care Services Limited","RDOD09220180403","197.68","TPP - Home Care","190444179","04/04/2018","Older People Care Purchasing","OP Care Purchasing (Spot Placements)","R5420"
"Wolverhampton City Council","http://opendatacommunities.org/id/metropolitan-district-council/wolverhampton","702249","C M Community Care Services Limited","TCOL01320180403","155.32","TPP - Home Care","190444183","04/04/2018","Older People Care Purchasing","OP Care Purchasing (Spot Placements)","R5420"
"Wolverhampton City Council","http://opendatacommunities.org/id/metropolitan-district-council/wolverhampton","702249","C M Community Care Services Limited","TCOL01320180403","197.68","TPP - Home Care","190444183","04/04/2018","Older People Care Purchasing","OP Care Purchasing (Spot Placements)","R5420"
"Wolverhampton City Council","http://opendatacommunities.org/id/metropolitan-district-council/wolverhampton","702249","C M Community Care Services Limited","LCON04020180411","247.10","TPP - Home Care","190447153","13/04/2018","Physical Disabilities Care Purchasing","PD Care Purchasing (Spot Placements)","R5420"
"Wolverhampton City Council","http://opendatacommunities.org/id/metropolitan-district-council/wolverhampton","702249","C M Community Care Services Limited","DRYA08720180411","172.97","TPP - Home Care","190447147","13/04/2018","Older People Care Purchasing","OP Care Purchasing (Spot Placements)","R5420"
"Wolverhampton City Council","http://opendatacommunities.org/id/metropolitan-district-council/wolverhampton","702249","C M Community Care Services Limited","DRYA08720180411","172.97","TPP - Home Care","190447147","13/04/2018","Older People Care Purchasing","OP Care Purchasing (Spot Placements)","R5420"
"Wolverhampton City Council","http://opendatacommunities.org/id/metropolitan-district-council/wolverhampton","702249","C M Community Care Services Limited","BBOO00420180411","222.39","TPP - Home Care","190447146","13/04/2018","Older People Care Purchasing","OP Care Purchasing (Spot Placements)","R5420"
"Wolverhampton City Council","http://opendatacommunities.org/id/metropolitan-district-council/wolverhampton","702249","C M Community Care Services Limited","BBOO00420180411","222.39","TPP - Home Care","190447146","13/04/2018","Older People Care Purchasing","OP Care Purchasing (Spot Placements)","R5420"
"Wolverhampton City Council","http://opendatacommunities.org/id/metropolitan-district-council/wolverhampton","702249","C M Community Care Services Limited","MBEN01520180411","197.68","TPP - Home Care","190447154","13/04/2018","Older People Care Purchasing","OP Care Purchasing (Spot Placements)","R5420"
"Wolverhampton City Council","http://opendatacommunities.org/id/metropolitan-district-council/wolverhampton","702249","C M Community Care Services Limited","MBEN01520180411","197.68","TPP - Home Care","190447154","13/04/2018","Older People Care Purchasing","OP Care Purchasing (Spot Placements)","R5420"
"Wolverhampton City Council","http://opendatacommunities.org/id/metropolitan-district-council/wolverhampton","702249","C M Community Care Services Limited","LCON04020180411","247.10","TPP - Home Care","190447153","13/04/2018","Physical Disabilities Care Purchasing","PD Care Purchasing (Spot Placements)","R5420"
"Wolverhampton City Council","http://opendatacommunities.org/id/metropolitan-district-council/wolverhampton","702249","C M Community Care Services Limited","MHAR01120180411","98.84","TPP - Home Care","190447155","13/04/2018","Older People Care Purchasing","OP Care Purchasing (Spot Placements)","R5420"
"Wolverhampton City Council","http://opendatacommunities.org/id/metropolitan-district-council/wolverhampton","702249","C M Community Care Services Limited","MHAR01120180411","98.84","TPP - Home Care","190447155","13/04/2018","Older People Care Purchasing","OP Care Purchasing (Spot Placements)","R5420"
"Wolverhampton City Council","http://opendatacommunities.org/id/metropolitan-district-council/wolverhampton","702249","C M Community Care Services Limited","LCON04320180426","254.10","TPP - Home Care","190452031","27/04/2018","Physical Disabilities Care Purchasing","PD Care Purchasing (Spot Placements)","R5420"
"Wolverhampton City Council","http://opendatacommunities.org/id/metropolitan-district-council/wolverhampton","702249","C M Community Care Services Limited","LCON04320180426","254.10","TPP - Home Care","190452031","27/04/2018","Physical Disabilities Care Purchasing","PD Care Purchasing (Spot Placements)","R5420"
"Wolverhampton City Council","http://opendatacommunities.org/id/metropolitan-district-council/wolverhampton","702249","C M Community Care Services Limited","ABAT03120180426","203.28","TPP - Home Care","190452022","27/04/2018","Older People Care Purchasing","OP Care Purchasing (Spot Placements)","R5420"
"Wolverhampton City Council","http://opendatacommunities.org/id/metropolitan-district-council/wolverhampton","702249","C M Community Care Services Limited","ABAT03120180426","203.28","TPP - Home Care","190452022","27/04/2018","Older People Care Purchasing","OP Care Purchasing (Spot Placements)","R5420"
"Wolverhampton City Council","http://opendatacommunities.org/id/metropolitan-district-council/wolverhampton","702249","C M Community Care Services Limited","MMAS00120180426","192.39","TPP - Home Care","190452035","27/04/2018","Older People Care Purchasing","OP Care Purchasing (Spot Placements)","R5420"
"Wolverhampton City Council","http://opendatacommunities.org/id/metropolitan-district-council/wolverhampton","702249","C M Community Care Services Limited","MMAS00120180426","214.17","TPP - Home Care","190452035","27/04/2018","Older People Care Purchasing","OP Care Purchasing (Spot Placements)","R5420"
"Wolverhampton City Council","http://opendatacommunities.org/id/metropolitan-district-council/wolverhampton","702249","C M Community Care Services Limited","NMIS00920180426","112.53","TPP - Home Care","190452036","27/04/2018","Learning Disabilities Care Purchasing","LD Care Purchasing (Spot Placements)","R5420"
"Wolverhampton City Council","http://opendatacommunities.org/id/metropolitan-district-council/wolverhampton","702249","C M Community Care Services Limited","EWEB03420180423","203.28","TPP - Home Care","190450148","25/04/2018","Older People Care Purchasing","OP Care Purchasing (Spot Placements)","R5420"
"Wolverhampton City Council","http://opendatacommunities.org/id/metropolitan-district-council/wolverhampton","702249","C M Community Care Services Limited","EWEB03420180423","203.28","TPP - Home Care","190450148","25/04/2018","Older People Care Purchasing","OP Care Purchasing (Spot Placements)","R5420"
"Wolverhampton City Council","http://opendatacommunities.org/id/metropolitan-district-council/wolverhampton","702249","C M Community Care Services Limited","DRYA08920180423","177.87","TPP - Home Care","190450146","25/04/2018","Older People Care Purchasing","OP Care Purchasing (Spot Placements)","R5420"
"Wolverhampton City Council","http://opendatacommunities.org/id/metropolitan-district-council/wolverhampton","702249","C M Community Care Services Limited","DRYA08920180423","177.87","TPP - Home Care","190450146","25/04/2018","Older People Care Purchasing","OP Care Purchasing (Spot Placements)","R5420"
"Wolverhampton City Council","http://opendatacommunities.org/id/metropolitan-district-council/wolverhampton","702249","C M Community Care Services Limited","NMIS01820180423","112.53","TPP - Home Care","190450158","25/04/2018","Learning Disabilities Care Purchasing","LD Care Purchasing (Spot Placements)","R5420"
"Wolverhampton City Council","http://opendatacommunities.org/id/metropolitan-district-council/wolverhampton","702249","C M Community Care Services Limited","PMOR01720180423","188.76","TPP - Home Care","190450159","25/04/2018","Older People Care Purchasing","OP Care Purchasing (Spot Placements)","R5420"
"Wolverhampton City Council","http://opendatacommunities.org/id/metropolitan-district-council/wolverhampton","702249","C M Community Care Services Limited","PMOR01720180423","203.28","TPP - Home Care","190450159","25/04/2018","Older People Care Purchasing","OP Care Purchasing (Spot Placements)","R5420"
"Wolverhampton City Council","http://opendatacommunities.org/id/metropolitan-district-council/wolverhampton","702249","C M Community Care Services Limited","MMAL02020180423","72.60","TPP - Home Care","190450156","25/04/2018","Physical Disabilities Care Purchasing","PD Care Purchasing (Spot Placements)","R5420"
"Wolverhampton City Council","http://opendatacommunities.org/id/metropolitan-district-council/wolverhampton","702249","C M Community Care Services Limited","MMAL02020180423","72.60","TPP - Home Care","190450156","25/04/2018","Physical Disabilities Care Purchasing","PD Care Purchasing (Spot Placements)","R5420"
"Wolverhampton City Council","http://opendatacommunities.org/id/metropolitan-district-council/wolverhampton","702249","C M Community Care Services Limited","LCON04120180417","254.10","TPP - Home Care","190448814","18/04/2018","Physical Disabilities Care Purchasing","PD Care Purchasing (Spot Placements)","R5420"
"Wolverhampton City Council","http://opendatacommunities.org/id/metropolitan-district-council/wolverhampton","702249","C M Community Care Services Limited","LCON04120180417","254.10","TPP - Home Care","190448814","18/04/2018","Physical Disabilities Care Purchasing","PD Care Purchasing (Spot Placements)","R5420"
"Wolverhampton City Council","http://opendatacommunities.org/id/metropolitan-district-council/wolverhampton","702249","C M Community Care Services Limited","EMAT00620180416","76.23","TPP - Home Care","190448514","18/04/2018","Older People Care Purchasing","OP Care Purchasing (Spot Placements)","R5420"
"Wolverhampton City Council","http://opendatacommunities.org/id/metropolitan-district-council/wolverhampton","702249","C M Community Care Services Limited","EMAT00620180416","76.23","TPP - Home Care","190448514","18/04/2018","Older People Care Purchasing","OP Care Purchasing (Spot Placements)","R5420"
"Wolverhampton City Council","http://opendatacommunities.org/id/metropolitan-district-council/wolverhampton","702249","C M Community Care Services Limited","DRYA08820180416","177.87","TPP - Home Care","190448513","18/04/2018","Older People Care Purchasing","OP Care Purchasing (Spot Placements)","R5420"
"Wolverhampton City Council","http://opendatacommunities.org/id/metropolitan-district-council/wolverhampton","702249","C M Community Care Services Limited","DRYA08820180416","177.87","TPP - Home Care","190448513","18/04/2018","Older People Care Purchasing","OP Care Purchasing (Spot Placements)","R5420"
"Wolverhampton City Council","http://opendatacommunities.org/id/metropolitan-district-council/wolverhampton","702249","C M Community Care Services Limited","EWEB03320180416","203.28","TPP - Home Care","190448515","18/04/2018","Older People Care Purchasing","OP Care Purchasing (Spot Placements)","R5420"
"Wolverhampton City Council","http://opendatacommunities.org/id/metropolitan-district-council/wolverhampton","702249","C M Community Care Services Limited","EWEB03320180416","203.28","TPP - Home Care","190448515","18/04/2018","Older People Care Purchasing","OP Care Purchasing (Spot Placements)","R5420"
"Wolverhampton City Council","http://opendatacommunities.org/id/metropolitan-district-council/wolverhampton","702249","C M Community Care Services Limited","PMOR01620180416","203.28","TPP - Home Care","190448523","18/04/2018","Older People Care Purchasing","OP Care Purchasing (Spot Placements)","R5420"
"Wolverhampton City Council","http://opendatacommunities.org/id/metropolitan-district-council/wolverhampton","702249","C M Community Care Services Limited","PMOR01620180416","203.28","TPP - Home Care","190448523","18/04/2018","Older People Care Purchasing","OP Care Purchasing (Spot Placements)","R5420"
"Wolverhampton City Council","http://opendatacommunities.org/id/metropolitan-district-council/wolverhampton","702249","C M Community Care Services Limited","ABAT02820180411","197.68","TPP - Home Care","190447144","13/04/2018","Older People Care Purchasing","OP Care Purchasing (Spot Placements)","R5420"
"Wolverhampton City Council","http://opendatacommunities.org/id/metropolitan-district-council/wolverhampton","702249","C M Community Care Services Limited","ABAT02820180411","197.68","TPP - Home Care","190447144","13/04/2018","Older People Care Purchasing","OP Care Purchasing (Spot Placements)","R5420"
"Wolverhampton City Council","http://opendatacommunities.org/id/metropolitan-district-council/wolverhampton","702249","C M Community Care Services Limited","RTRO02920180411","56.48","TPP - Home Care","190447162","13/04/2018","Older People Care Purchasing","OP Care Purchasing (Spot Placements)","R5420"
"Wolverhampton City Council","http://opendatacommunities.org/id/metropolitan-district-council/wolverhampton","702249","C M Community Care Services Limited","RTRO02920180411","56.48","TPP - Home Care","190447162","13/04/2018","Older People Care Purchasing","OP Care Purchasing (Spot Placements)","R5420"
"Wolverhampton City Council","http://opendatacommunities.org/id/metropolitan-district-council/wolverhampton","702249","C M Community Care Services Limited","RDOD09420180411","197.68","TPP - Home Care","190447161","13/04/2018","Older People Care Purchasing","OP Care Purchasing (Spot Placements)","R5420"
"Wolverhampton City Council","http://opendatacommunities.org/id/metropolitan-district-council/wolverhampton","702249","C M Community Care Services Limited","LAGG04020180411","172.97","TPP - Home Care","190447152","13/04/2018","Older People Care Purchasing","OP Care Purchasing (Spot Placements)","R5420"
"Wolverhampton City Council","http://opendatacommunities.org/id/metropolitan-district-council/wolverhampton","702249","C M Community Care Services Limited","LAGG04020180411","172.97","TPP - Home Care","190447152","13/04/2018","Older People Care Purchasing","OP Care Purchasing (Spot Placements)","R5420"
"Wolverhampton City Council","http://opendatacommunities.org/id/metropolitan-district-council/wolverhampton","702249","C M Community Care Services Limited","PMOR01520180411","197.68","TPP - Home Care","190447160","13/04/2018","Older People Care Purchasing","OP Care Purchasing (Spot Placements)","R5420"
"Wolverhampton City Council","http://opendatacommunities.org/id/metropolitan-district-council/wolverhampton","702249","C M Community Care Services Limited","PMOR01520180411","197.68","TPP - Home Care","190447160","13/04/2018","Older People Care Purchasing","OP Care Purchasing (Spot Placements)","R5420"
"Wolverhampton City Council","http://opendatacommunities.org/id/metropolitan-district-council/wolverhampton","702249","C M Community Care Services Limited","ABAT02720180403","197.68","TPP - Home Care","190444148","04/04/2018","Older People Care Purchasing","OP Care Purchasing (Spot Placements)","R5420"
"Wolverhampton City Council","http://opendatacommunities.org/id/metropolitan-district-council/wolverhampton","702249","C M Community Care Services Limited","ABAT02720180403","197.68","TPP - Home Care","190444148","04/04/2018","Older People Care Purchasing","OP Care Purchasing (Spot Placements)","R5420"
"Wolverhampton City Council","http://opendatacommunities.org/id/metropolitan-district-council/wolverhampton","702249","C M Community Care Services Limited","BBOO00320180403","222.39","TPP - Home Care","190444152","04/04/2018","Older People Care Purchasing","OP Care Purchasing (Spot Placements)","R5420"
"Wolverhampton City Council","http://opendatacommunities.org/id/metropolitan-district-council/wolverhampton","702249","C M Community Care Services Limited","BBOO00320180403","222.39","TPP - Home Care","190444152","04/04/2018","Older People Care Purchasing","OP Care Purchasing (Spot Placements)","R5420"
"Wolverhampton City Council","http://opendatacommunities.org/id/metropolitan-district-council/wolverhampton","702249","C M Community Care Services Limited","MBEN01420180403","197.68","TPP - Home Care","190444168","04/04/2018","Older People Care Purchasing","OP Care Purchasing (Spot Placements)","R5420"
"Wolverhampton City Council","http://opendatacommunities.org/id/metropolitan-district-council/wolverhampton","702249","C M Community Care Services Limited","MBEN01420180403","197.68","TPP - Home Care","190444168","04/04/2018","Older People Care Purchasing","OP Care Purchasing (Spot Placements)","R5420"
"Wolverhampton City Council","http://opendatacommunities.org/id/metropolitan-district-council/wolverhampton","702249","C M Community Care Services Limited","DRYA08620180403","172.97","TPP - Home Care","190444156","04/04/2018","Older People Care Purchasing","OP Care Purchasing (Spot Placements)","R5420"
"Wolverhampton City Council","http://opendatacommunities.org/id/metropolitan-district-council/wolverhampton","702249","C M Community Care Services Limited","DRYA08620180403","172.97","TPP - Home Care","190444156","04/04/2018","Older People Care Purchasing","OP Care Purchasing (Spot Placements)","R5420"
"Wolverhampton City Council","http://opendatacommunities.org/id/metropolitan-district-council/wolverhampton","702249","C M Community Care Services Limited","LAGG03920180403","172.97","TPP - Home Care","190444164","04/04/2018","Older People Care Purchasing","OP Care Purchasing (Spot Placements)","R5420"
"Wolverhampton City Council","http://opendatacommunities.org/id/metropolitan-district-council/wolverhampton","702249","C M Community Care Services Limited","LAGG03920180403","172.97","TPP - Home Care","190444164","04/04/2018","Older People Care Purchasing","OP Care Purchasing (Spot Placements)","R5420"
"Wolverhampton City Council","http://opendatacommunities.org/id/metropolitan-district-council/wolverhampton","702249","C M Community Care Services Limited","EWEB03120180403","197.68","TPP - Home Care","190444160","04/04/2018","Older People Care Purchasing","OP Care Purchasing (Spot Placements)","R5420"
"Wolverhampton City Council","http://opendatacommunities.org/id/metropolitan-district-council/wolverhampton","702249","C M Community Care Services Limited","EWEB03120180403","197.68","TPP - Home Care","190444160","04/04/2018","Older People Care Purchasing","OP Care Purchasing (Spot Placements)","R5420"
"Wolverhampton City Council","http://opendatacommunities.org/id/metropolitan-district-council/wolverhampton","702249","C M Community Care Services Limited","MHAY01020180403","197.68","TPP - Home Care","190444172","04/04/2018","Older People Care Purchasing","OP Care Purchasing (Spot Placements)","R5420"
"Wolverhampton City Council","http://opendatacommunities.org/id/metropolitan-district-council/wolverhampton","702249","C M Community Care Services Limited","MHAY01020180403","197.68","TPP - Home Care","190444172","04/04/2018","Older People Care Purchasing","OP Care Purchasing (Spot Placements)","R5420"
"Wolverhampton City Council","http://opendatacommunities.org/id/metropolitan-district-council/wolverhampton","702249","C M Community Care Services Limited","NMIS00520180403","102.37","TPP - Home Care","190444176","04/04/2018","Learning Disabilities Care Purchasing","LD Care Purchasing (Spot Placements)","R5420"
"Wolverhampton City Council","http://opendatacommunities.org/id/metropolitan-district-council/wolverhampton","702249","C M Community Care Services Limited","RDOD09320180403","197.68","TPP - Home Care","190444180","04/04/2018","Older People Care Purchasing","OP Care Purchasing (Spot Placements)","R5420"
"Wolverhampton City Council","http://opendatacommunities.org/id/metropolitan-district-council/wolverhampton","702249","C M Community Care Services Limited","TLAM01020180403","134.14","TPP - Home Care","190444184","04/04/2018","Older People Care Purchasing","OP Care Purchasing (Spot Placements)","R5420"
"Wolverhampton City Council","http://opendatacommunities.org/id/metropolitan-district-council/wolverhampton","702249","C M Community Care Services Limited","TLAM01020180403","148.26","TPP - Home Care","190444184","04/04/2018","Older People Care Purchasing","OP Care Purchasing (Spot Placements)","R5420"
"Wolverhampton City Council","http://opendatacommunities.org/id/metropolitan-district-council/wolverhampton","702249","C M Community Care Services Limited","EWEB03520180426","203.28","TPP - Home Care","190452026","27/04/2018","Older People Care Purchasing","OP Care Purchasing (Spot Placements)","R5420"
"Wolverhampton City Council","http://opendatacommunities.org/id/metropolitan-district-council/wolverhampton","702249","C M Community Care Services Limited","EWEB03520180426","203.28","TPP - Home Care","190452026","27/04/2018","Older People Care Purchasing","OP Care Purchasing (Spot Placements)","R5420"
"Wolverhampton City Council","http://opendatacommunities.org/id/metropolitan-district-council/wolverhampton","702249","C M Community Care Services Limited","MHAR01420180426","101.64","TPP - Home Care","190452033","27/04/2018","Older People Care Purchasing","OP Care Purchasing (Spot Placements)","R5420"
"Wolverhampton City Council","http://opendatacommunities.org/id/metropolitan-district-council/wolverhampton","702249","C M Community Care Services Limited","MHAR01420180426","101.64","TPP - Home Care","190452033","27/04/2018","Older People Care Purchasing","OP Care Purchasing (Spot Placements)","R5420"
"Wolverhampton City Council","http://opendatacommunities.org/id/metropolitan-district-council/wolverhampton","702249","C M Community Care Services Limited","PMOR01820180426","203.28","TPP - Home Care","190452037","27/04/2018","Older People Care Purchasing","OP Care Purchasing (Spot Placements)","R5420"
"Wolverhampton City Council","http://opendatacommunities.org/id/metropolitan-district-council/wolverhampton","702249","C M Community Care Services Limited","PMOR01820180426","203.28","TPP - Home Care","190452037","27/04/2018","Older People Care Purchasing","OP Care Purchasing (Spot Placements)","R5420"
"Wolverhampton City Council","http://opendatacommunities.org/id/metropolitan-district-council/wolverhampton","702249","C M Community Care Services Limited","MMAL02120180426","72.60","TPP - Home Care","190452034","27/04/2018","Physical Disabilities Care Purchasing","PD Care Purchasing (Spot Placements)","R5420"
"Wolverhampton City Council","http://opendatacommunities.org/id/metropolitan-district-council/wolverhampton","702249","C M Community Care Services Limited","MMAL02120180426","72.60","TPP - Home Care","190452034","27/04/2018","Physical Disabilities Care Purchasing","PD Care Purchasing (Spot Placements)","R5420"
"Wolverhampton City Council","http://opendatacommunities.org/id/metropolitan-district-council/wolverhampton","702249","C M Community Care Services Limited","MHAR01320180423","101.64","TPP - Home Care","190450155","25/04/2018","Older People Care Purchasing","OP Care Purchasing (Spot Placements)","R5420"
"Wolverhampton City Council","http://opendatacommunities.org/id/metropolitan-district-council/wolverhampton","702249","C M Community Care Services Limited","MHAR01320180423","101.64","TPP - Home Care","190450155","25/04/2018","Older People Care Purchasing","OP Care Purchasing (Spot Placements)","R5420"
"Wolverhampton City Council","http://opendatacommunities.org/id/metropolitan-district-council/wolverhampton","702249","C M Community Care Services Limited","JREI02320180423","203.28","TPP - Home Care","190450151","25/04/2018","Older People Care Purchasing","OP Care Purchasing (Spot Placements)","R5420"
"Wolverhampton City Council","http://opendatacommunities.org/id/metropolitan-district-council/wolverhampton","702249","C M Community Care Services Limited","JREI02320180423","203.28","TPP - Home Care","190450151","25/04/2018","Older People Care Purchasing","OP Care Purchasing (Spot Placements)","R5420"
"Wolverhampton City Council","http://opendatacommunities.org/id/metropolitan-district-council/wolverhampton","702249","C M Community Care Services Limited","LCON04220180423","254.10","TPP - Home Care","190450153","25/04/2018","Physical Disabilities Care Purchasing","PD Care Purchasing (Spot Placements)","R5420"
"Wolverhampton City Council","http://opendatacommunities.org/id/metropolitan-district-council/wolverhampton","702249","C M Community Care Services Limited","LCON04220180423","254.10","TPP - Home Care","190450153","25/04/2018","Physical Disabilities Care Purchasing","PD Care Purchasing (Spot Placements)","R5420"
"Wolverhampton City Council","http://opendatacommunities.org/id/metropolitan-district-council/wolverhampton","702249","C M Community Care Services Limited","LAGG04220180423","177.87","TPP - Home Care","190450152","25/04/2018","Older People Care Purchasing","OP Care Purchasing (Spot Placements)","R5420"
"Wolverhampton City Council","http://opendatacommunities.org/id/metropolitan-district-council/wolverhampton","702249","C M Community Care Services Limited","LAGG04220180423","177.87","TPP - Home Care","190450152","25/04/2018","Older People Care Purchasing","OP Care Purchasing (Spot Placements)","R5420"
"Wolverhampton City Council","http://opendatacommunities.org/id/metropolitan-district-council/wolverhampton","702249","C M Community Care Services Limited","MHAR01220180416","101.64","TPP - Home Care","190448520","18/04/2018","Older People Care Purchasing","OP Care Purchasing (Spot Placements)","R5420"
"Wolverhampton City Council","http://opendatacommunities.org/id/metropolitan-district-council/wolverhampton","702249","C M Community Care Services Limited","MHAR01220180416","101.64","TPP - Home Care","190448520","18/04/2018","Older People Care Purchasing","OP Care Purchasing (Spot Placements)","R5420"
"Wolverhampton City Council","http://opendatacommunities.org/id/metropolitan-district-council/wolverhampton","702249","C M Community Care Services Limited","LAGG04120180416","177.87","TPP - Home Care","190448518","18/04/2018","Older People Care Purchasing","OP Care Purchasing (Spot Placements)","R5420"
"Wolverhampton City Council","http://opendatacommunities.org/id/metropolitan-district-council/wolverhampton","702249","C M Community Care Services Limited","LAGG04120180416","177.87","TPP - Home Care","190448518","18/04/2018","Older People Care Purchasing","OP Care Purchasing (Spot Placements)","R5420"
"Wolverhampton City Council","http://opendatacommunities.org/id/metropolitan-district-council/wolverhampton","702249","C M Community Care Services Limited","JREI02220180416","203.28","TPP - Home Care","190448517","18/04/2018","Older People Care Purchasing","OP Care Purchasing (Spot Placements)","R5420"
"Wolverhampton City Council","http://opendatacommunities.org/id/metropolitan-district-council/wolverhampton","702249","C M Community Care Services Limited","JREI02220180416","203.28","TPP - Home Care","190448517","18/04/2018","Older People Care Purchasing","OP Care Purchasing (Spot Placements)","R5420"
"Wolverhampton City Council","http://opendatacommunities.org/id/metropolitan-district-council/wolverhampton","702249","C M Community Care Services Limited","GBRI00220180416","145.20","TPP - Home Care","190448516","18/04/2018","Older People Care Purchasing","OP Care Purchasing (Spot Placements)","R5420"
"Wolverhampton City Council","http://opendatacommunities.org/id/metropolitan-district-council/wolverhampton","702249","C M Community Care Services Limited","EWE03220180411","197.68","TPP - Home Care","190447149","13/04/2018","Older People Care Purchasing","OP Care Purchasing (Spot Placements)","R5420"
"Wolverhampton City Council","http://opendatacommunities.org/id/metropolitan-district-council/wolverhampton","702249","C M Community Care Services Limited","EWE03220180411","197.68","TPP - Home Care","190447149","13/04/2018","Older People Care Purchasing","OP Care Purchasing (Spot Placements)","R5420"
"Wolverhampton City Council","http://opendatacommunities.org/id/metropolitan-district-council/wolverhampton","702249","C M Community Care Services Limited","MMAL01820180411","70.60","TPP - Home Care","190447157","13/04/2018","Physical Disabilities Care Purchasing","PD Care Purchasing (Spot Placements)","R5420"
"Wolverhampton City Council","http://opendatacommunities.org/id/metropolitan-district-council/wolverhampton","702249","C M Community Care Services Limited","MMAL01820180411","70.60","TPP - Home Care","190447157","13/04/2018","Physical Disabilities Care Purchasing","PD Care Purchasing (Spot Placements)","R5420"
"Wolverhampton City Council","http://opendatacommunities.org/id/metropolitan-district-council/wolverhampton","702249","C M Community Care Services Limited","TLAM01220180411","148.26","TPP - Home Care","190447163","13/04/2018","Older People Care Purchasing","OP Care Purchasing (Spot Placements)","R5420"
"Wolverhampton City Council","http://opendatacommunities.org/id/metropolitan-district-council/wolverhampton","702249","C M Community Care Services Limited","APEL02020180411","28.24","TPP - Home Care","190447145","13/04/2018","Older People Care Purchasing","OP Care Purchasing (Spot Placements)","R5420"
"Wolverhampton City Council","http://opendatacommunities.org/id/metropolitan-district-council/wolverhampton","702249","C M Community Care Services Limited","APEL02020180411","28.24","TPP - Home Care","190447145","13/04/2018","Older People Care Purchasing","OP Care Purchasing (Spot Placements)","R5420"
"Wolverhampton City Council","http://opendatacommunities.org/id/metropolitan-district-council/wolverhampton","702249","C M Community Care Services Limited","NMIS00620180411","109.43","TPP - Home Care","190447159","13/04/2018","Learning Disabilities Care Purchasing","LD Care Purchasing (Spot Placements)","R5420"
"Wolverhampton City Council","http://opendatacommunities.org/id/metropolitan-district-council/wolverhampton","702249","C M Community Care Services Limited","TLAM01220180411","148.26","TPP - Home Care","190447163","13/04/2018","Older People Care Purchasing","OP Care Purchasing (Spot Placements)","R5420"
"Wolverhampton City Council","http://opendatacommunities.org/id/metropolitan-district-council/wolverhampton","702249","C M Community Care Services Limited","APEL01820180403","183.56","TPP - Home Care","190444149","04/04/2018","Older People Care Purchasing","OP Care Purchasing (Spot Placements)","R5420"
"Wolverhampton City Council","http://opendatacommunities.org/id/metropolitan-district-council/wolverhampton","702249","C M Community Care Services Limited","APEL01820180403","197.68","TPP - Home Care","190444149","04/04/2018","Older People Care Purchasing","OP Care Purchasing (Spot Placements)","R5420"
"Wolverhampton City Council","http://opendatacommunities.org/id/metropolitan-district-council/wolverhampton","702249","C M Community Care Services Limited","LCON03820180403","247.10","TPP - Home Care","190444165","04/04/2018","Physical Disabilities Care Purchasing","PD Care Purchasing (Spot Placements)","R5420"
"Wolverhampton City Council","http://opendatacommunities.org/id/metropolitan-district-council/wolverhampton","702249","C M Community Care Services Limited","LCON03820180403","247.10","TPP - Home Care","190444165","04/04/2018","Physical Disabilities Care Purchasing","PD Care Purchasing (Spot Placements)","R5420"
"Wolverhampton City Council","http://opendatacommunities.org/id/metropolitan-district-council/wolverhampton","702249","C M Community Care Services Limited","BBRO00220180403","222.39","TPP - Home Care","190444153","04/04/2018","Older People Care Purchasing","OP Care Purchasing (Spot Placements)","R5420"
"Wolverhampton City Council","http://opendatacommunities.org/id/metropolitan-district-council/wolverhampton","702249","C M Community Care Services Limited","BBRO00220180403","222.39","TPP - Home Care","190444153","04/04/2018","Older People Care Purchasing","OP Care Purchasing (Spot Placements)","R5420"
"Wolverhampton City Council","http://opendatacommunities.org/id/metropolitan-district-council/wolverhampton","702249","C M Community Care Services Limited","EMAT00320180403","74.13","TPP - Home Care","190444157","04/04/2018","Older People Care Purchasing","OP Care Purchasing (Spot Placements)","R5420"
"Wolverhampton City Council","http://opendatacommunities.org/id/metropolitan-district-council/wolverhampton","702249","C M Community Care Services Limited","EMAT00320180403","74.13","TPP - Home Care","190444157","04/04/2018","Older People Care Purchasing","OP Care Purchasing (Spot Placements)","R5420"
"Wolverhampton City Council","http://opendatacommunities.org/id/metropolitan-district-council/wolverhampton","702249","C M Community Care Services Limited","JREI01920180403","197.68","TPP - Home Care","190444161","04/04/2018","Older People Care Purchasing","OP Care Purchasing (Spot Placements)","R5420"
"Wolverhampton City Council","http://opendatacommunities.org/id/metropolitan-district-council/wolverhampton","702249","C M Community Care Services Limited","JREI01920180403","197.68","TPP - Home Care","190444161","04/04/2018","Older People Care Purchasing","OP Care Purchasing (Spot Placements)","R5420"
"Wolverhampton City Council","http://opendatacommunities.org/id/metropolitan-district-council/wolverhampton","702249","C M Community Care Services Limited","MHAR00920180403","98.84","TPP - Home Care","190444169","04/04/2018","Older People Care Purchasing","OP Care Purchasing (Spot Placements)","R5420"
"Wolverhampton City Council","http://opendatacommunities.org/id/metropolitan-district-council/wolverhampton","702249","C M Community Care Services Limited","MHAR00920180403","98.84","TPP - Home Care","190444169","04/04/2018","Older People Care Purchasing","OP Care Purchasing (Spot Placements)","R5420"
"Wolverhampton City Council","http://opendatacommunities.org/id/metropolitan-district-council/wolverhampton","702249","C M Community Care Services Limited","MMAL01620180403","70.60","TPP - Home Care","190444173","04/04/2018","Physical Disabilities Care Purchasing","PD Care Purchasing (Spot Placements)","R5420"
"Wolverhampton City Council","http://opendatacommunities.org/id/metropolitan-district-council/wolverhampton","702249","C M Community Care Services Limited","MMAL01620180403","70.60","TPP - Home Care","190444173","04/04/2018","Physical Disabilities Care Purchasing","PD Care Purchasing (Spot Placements)","R5420"
"Wolverhampton City Council","http://opendatacommunities.org/id/metropolitan-district-council/wolverhampton","702249","C M Community Care Services Limited","PMOR01320180403","183.56","TPP - Home Care","190444177","04/04/2018","Older People Care Purchasing","OP Care Purchasing (Spot Placements)","R5420"
"Wolverhampton City Council","http://opendatacommunities.org/id/metropolitan-district-council/wolverhampton","702249","C M Community Care Services Limited","PMOR01320180403","197.68","TPP - Home Care","190444177","04/04/2018","Older People Care Purchasing","OP Care Purchasing (Spot Placements)","R5420"
"Wolverhampton City Council","http://opendatacommunities.org/id/metropolitan-district-council/wolverhampton","702249","C M Community Care Services Limited","RTRO02720180403","197.68","TPP - Home Care","190444181","04/04/2018","Older People Care Purchasing","OP Care Purchasing (Spot Placements)","R5420"
"Wolverhampton City Council","http://opendatacommunities.org/id/metropolitan-district-council/wolverhampton","702249","C M Community Care Services Limited","RTRO02720180403","197.68","TPP - Home Care","190444181","04/04/2018","Older People Care Purchasing","OP Care Purchasing (Spot Placements)","R5420"
"Wolverhampton City Council","http://opendatacommunities.org/id/metropolitan-district-council/wolverhampton","702249","C M Community Care Services Limited","TLAM01120180403","148.26","TPP - Home Care","190444185","04/04/2018","Older People Care Purchasing","OP Care Purchasing (Spot Placements)","R5420"
"Wolverhampton City Council","http://opendatacommunities.org/id/metropolitan-district-council/wolverhampton","702249","C M Community Care Services Limited","TLAM01120180403","148.26","TPP - Home Care","190444185","04/04/2018","Older People Care Purchasing","OP Care Purchasing (Spot Placements)","R5420"
"Wolverhampton City Council","http://opendatacommunities.org/id/metropolitan-district-council/wolverhampton","702249","C M Community Care Services Limited","JBEN00220180426","152.46","TPP - Home Care","190452028","27/04/2018","Older People Care Purchasing","OP Care Purchasing (Spot Placements)","R5420"
"Wolverhampton City Council","http://opendatacommunities.org/id/metropolitan-district-council/wolverhampton","702249","C M Community Care Services Limited","JBEN00220180426","152.46","TPP - Home Care","190452028","27/04/2018","Older People Care Purchasing","OP Care Purchasing (Spot Placements)","R5420"
"Wolverhampton City Council","http://opendatacommunities.org/id/metropolitan-district-council/wolverhampton","702249","C M Community Care Services Limited","JREI02420180426","203.28","TPP - Home Care","190452029","27/04/2018","Older People Care Purchasing","OP Care Purchasing (Spot Placements)","R5420"
"Wolverhampton City Council","http://opendatacommunities.org/id/metropolitan-district-council/wolverhampton","702249","C M Community Care Services Limited","JREI02420180426","203.28","TPP - Home Care","190452029","27/04/2018","Older People Care Purchasing","OP Care Purchasing (Spot Placements)","R5420"
"Wolverhampton City Council","http://opendatacommunities.org/id/metropolitan-district-council/wolverhampton","702249","C M Community Care Services Limited","LAGG04320180426","177.87","TPP - Home Care","190452030","27/04/2018","Older People Care Purchasing","OP Care Purchasing (Spot Placements)","R5420"
